Body name,Directorate,Service Area Categorisation,Supplier Name,Date,Net Amount,Purpose of Spend,Procurement Classification: ProClass Label,
Solihull MBC,Children's Services & Skills,Children & Education Services,99p Stores,25/01/2016,7.92,Purchase Card Statement Summary,111200 - Catering - Food & Beverages,
Solihull MBC,Children's Services & Skills,Children & Education Services,99p Stores,25/01/2016,19.20,Purchase Card Statement Summary,111200 - Catering - Food & Beverages,
Solihull MBC,Communities & Adult Social Care,Adult Social Care,99p Stores Ltd,25/01/2016,6.98,Purchase Card Statement Summary,111200 - Catering - Food & Beverages,
Solihull MBC,Children's Services & Skills,Children & Education Services,99p Stores Ltd,13/12/2015,6.98,Capitation,111200 - Catering - Food & Beverages,
Solihull MBC,Managed Growth,Other Housing Services,A M Mobility,25/01/2016,50.00,Purchase Card Statement Summary,311300 - Healthcare - Equipment,
Solihull MBC,Children's Services - DSG Schools - Non DMT,Children & Education Services,Aco Technologies L,25/01/2016,183.36,Purchase Card Statement Summary,102500 - Building Construction Materials - Timber,
Solihull MBC,Children's Services - DSG Schools - Non DMT,Children & Education Services,Acocks Green Bowl,08/12/2015,10.80,Visits & Pupil Activities,291400 - Arts & Leisure Services - Sport & Fitness,
Solihull MBC,Children's Services - DSG Schools - Non DMT,Children & Education Services,Acocks Green Bowl,15/12/2015,12.60,Visits & Pupil Activities,291400 - Arts & Leisure Services - Sport & Fitness,
Solihull MBC,Resources,Central Services to the Public,Adobe Systems Software,25/01/2016,46.14,Purchase Card Statement Summary,271430 - Information Communication Technology - Software - Commercial Off-The-Shelf,
Solihull MBC,Children's Services - DSG Central.,Children & Education Services,Adsa Stores Ltd 4231,22/12/2015,6.00,Purchase Card Statement Summary,111200 - Catering - Food & Beverages,
Solihull MBC,Children's Services & Skills,Children & Education Services,Alan Warwick,25/01/2016,13.00,Purchase Card Statement Summary,111200 - Catering - Food & Beverages,
Solihull MBC,Children's Services & Skills,Children & Education Services,Alan Warwick,03/12/2015,33.90,Catering Provisions,111200 - Catering - Food & Beverages,
Solihull MBC,Communities & Adult Social Care,Adult Social Care,Aldi,25/01/2016,12.40,Purchase Card Statement Summary,111200 - Catering - Food & Beverages,
Solihull MBC,Communities & Adult Social Care,Adult Social Care,Aldi,25/01/2016,16.03,Purchase Card Statement Summary,111200 - Catering - Food & Beverages,
Solihull MBC,Communities & Adult Social Care,Adult Social Care,Aldi,25/01/2016,17.75,Purchase Card Statement Summary,111200 - Catering - Food & Beverages,
Solihull MBC,Communities & Adult Social Care,Adult Social Care,Aldi,25/01/2016,21.70,Purchase Card Statement Summary,111200 - Catering - Food & Beverages,
Solihull MBC,Communities & Adult Social Care,Adult Social Care,Aldi,25/01/2016,32.56,Purchase Card Statement Summary,111200 - Catering - Food & Beverages,
Solihull MBC,Communities & Adult Social Care,Adult Social Care,Aldi,25/01/2016,39.52,Purchase Card Statement Summary,111200 - Catering - Food & Beverages,
Solihull MBC,Communities & Adult Social Care,Adult Social Care,Aldi,25/01/2016,56.88,Purchase Card Statement Summary,111200 - Catering - Food & Beverages,
Solihull MBC,Communities & Adult Social Care,Adult Social Care,Aldi,25/01/2016,104.23,Purchase Card Statement Summary,111200 - Catering - Food & Beverages,
Solihull MBC,Communities & Adult Social Care,Adult Social Care,Aldi,25/01/2016,127.57,Purchase Card Statement Summary,111200 - Catering - Food & Beverages,
Solihull MBC,Children's Services - DSG Schools - Non DMT,Children & Education Services,Aldi,14/12/2015,2.76,Catering Provisions,111200 - Catering - Food & Beverages,
Solihull MBC,Children's Services - DSG Schools - Non DMT,Children & Education Services,Aldi,14/12/2015,3.30,Catering Provisions,111200 - Catering - Food & Beverages,
Solihull MBC,Children's Services - DSG Schools - Non DMT,Children & Education Services,Aldi,08/12/2015,11.71,Capitation,111200 - Catering - Food & Beverages,
Solihull MBC,Managed Growth - HRA,Housing Revenue Account,Amazon Digital Dwnlds,25/01/2016,0.99,General Debtors,171111 - Education - Audio Visual,
Solihull MBC,Resources,Central Services to the Public,Amazon Digital Dwnlds,25/01/2016,22.55,Purchase Card Statement Summary,171111 - Education - Audio Visual,
Solihull MBC,Communities & Adult Social Care,Adult Social Care,Amazon Prime,25/01/2016,79.00,Purchase Card Statement Summary,161000 - Domestic Goods - Commercial,
Solihull MBC,Children's Services - DSG Schools - Non DMT,Children & Education Services,Amazon Prime,25/01/2016,79.00,Purchase Card Statement Summary,161000 - Domestic Goods - Commercial,
Solihull MBC,Children's Services - DSG Schools - Non DMT,Children & Education Services,Amazon Prime,04/12/2015,79.00,Capitation,161000 - Domestic Goods - Commercial,
Solihull MBC,Managed Growth,Planning & Development Services,"Amazon Svcs Europe,Sar",25/01/2016,1.48,Purchase Card Statement Summary,171114 - Education - Literature,
Solihull MBC,Children's Services - DSG Schools - Non DMT,Children & Education Services,"Amazon Svcs Europe,Sar",25/01/2016,13.51,Purchase Card Statement Summary,171114 - Education - Literature,
Solihull MBC,Children's Services - DSG Schools - Non DMT,Children & Education Services,Amazon Svcs Europe-Sar,17/12/2015,5.24,Capitation,171114 - Education - Literature,
Solihull MBC,Children's Services - DSG Schools - Non DMT,Children & Education Services,Amazon Svcs Europe-Sar,17/12/2015,7.63,Capitation,171114 - Education - Literature,
Solihull MBC,Children's Services - DSG Schools - Non DMT,Children & Education Services,Amazon Svcs Europe-Sar,16/12/2015,9.15,Capitation,171114 - Education - Literature,
Solihull MBC,Children's Services - DSG Schools - Non DMT,Children & Education Services,Amazon Svcs Europe-Sar,03/12/2015,10.09,Capitation,171114 - Education - Literature,
Solihull MBC,Children's Services - DSG Schools - Non DMT,Children & Education Services,Amazon Svcs Europe-Sar,04/12/2015,11.64,Visits & Pupil Activities,171114 - Education - Literature,
Solihull MBC,Children's Services - DSG Schools - Non DMT,Children & Education Services,Amazon Svcs Europe-Sar,03/12/2015,12.21,Capitation,171114 - Education - Literature,
Solihull MBC,Children's Services - DSG Central.,Children & Education Services,Amazon Svcs Europe-Sar,04/12/2015,12.89,Materials,171114 - Education - Literature,
Solihull MBC,Children's Services - DSG Schools - Non DMT,Children & Education Services,Amazon Svcs Europe-Sar,14/12/2015,25.45,Capitation,171114 - Education - Literature,
Solihull MBC,Children's Services - DSG Schools - Non DMT,Children & Education Services,Amazon Svcs Europe-Sar,22/12/2015,33.06,Capitation,171114 - Education - Literature,
Solihull MBC,Business Change,Central Services to the Public,Amazon UK Marketplace,25/01/2016,-58.24,Purchase Card Statement Summary,161000 - Domestic Goods - Commercial,
Solihull MBC,Business Change,Central Services to the Public,Amazon UK Marketplace,25/01/2016,-51.96,Purchase Card Statement Summary,161000 - Domestic Goods - Commercial,
Solihull MBC,Children's Services - DSG Schools - Non DMT,Children & Education Services,Amazon UK Marketplace,25/01/2016,-50.28,Purchase Card Statement Summary,161000 - Domestic Goods - Commercial,
Solihull MBC,Children's Services - DSG Schools - Non DMT,Children & Education Services,Amazon UK Marketplace,25/01/2016,-5.74,Purchase Card Statement Summary,161000 - Domestic Goods - Commercial,
Solihull MBC,Children's Services & Skills,Children & Education Services,Amazon UK Marketplace,25/01/2016,-5.20,Purchase Card Statement Summary,161000 - Domestic Goods - Commercial,
Solihull MBC,Resources,Central Services to the Public,Amazon UK Marketplace,25/01/2016,-3.80,Purchase Card Statement Summary,161000 - Domestic Goods - Commercial,
Solihull MBC,Children's Services - DSG Schools - Non DMT,Children & Education Services,Amazon UK Marketplace,25/01/2016,1.69,Purchase Card Statement Summary,171114 - Education - Literature,
Solihull MBC,Children's Services - DSG Schools - Non DMT,Children & Education Services,Amazon UK Marketplace,25/01/2016,2.25,Purchase Card Statement Summary,161000 - Domestic Goods - Commercial,
Solihull MBC,Children's Services & Skills,Children & Education Services,Amazon UK Marketplace,25/01/2016,2.40,Purchase Card Statement Summary,171114 - Education - Literature,
Solihull MBC,Children's Services - DSG Schools - Non DMT,Children & Education Services,Amazon UK Marketplace,25/01/2016,2.42,Purchase Card Statement Summary,161000 - Domestic Goods - Commercial,
Solihull MBC,Managed Growth - HRA,Housing Revenue Account,Amazon UK Marketplace,25/01/2016,3.19,General Debtors,161000 - Domestic Goods - Commercial,
Solihull MBC,Children's Services - DSG Schools - Non DMT,Children & Education Services,Amazon UK Marketplace,25/01/2016,3.50,Purchase Card Statement Summary,171114 - Education - Literature,
Solihull MBC,Children's Services & Skills,Children & Education Services,Amazon UK Marketplace,25/01/2016,3.61,Purchase Card Statement Summary,161000 - Domestic Goods - Commercial,
Solihull MBC,Resources,Central Services to the Public,Amazon UK Marketplace,25/01/2016,3.80,Purchase Card Statement Summary,171114 - Education - Literature,
Solihull MBC,Children's Services & Skills,Children & Education Services,Amazon UK Marketplace,25/01/2016,3.99,Purchase Card Statement Summary,171114 - Education - Literature,
Solihull MBC,Managed Growth,Planning & Development Services,Amazon UK Marketplace,25/01/2016,3.99,Purchase Card Statement Summary,161000 - Domestic Goods - Commercial,
Solihull MBC,Communities & Adult Social Care,Adult Social Care,Amazon UK Marketplace,25/01/2016,4.05,Purchase Card Statement Summary,161000 - Domestic Goods - Commercial,
Solihull MBC,Children's Services - DSG Schools - Non DMT,Children & Education Services,Amazon UK Marketplace,25/01/2016,5.74,Purchase Card Statement Summary,171114 - Education - Literature,
Solihull MBC,Children's Services - DSG Schools - Non DMT,Children & Education Services,Amazon UK Marketplace,25/01/2016,5.94,Purchase Card Statement Summary,161000 - Domestic Goods - Commercial,
Solihull MBC,Children's Services - DSG Schools - Non DMT,Children & Education Services,Amazon UK Marketplace,25/01/2016,6.22,Purchase Card Statement Summary,161000 - Domestic Goods - Commercial,
Solihull MBC,Children's Services - DSG Schools - Non DMT,Children & Education Services,Amazon UK Marketplace,25/01/2016,6.36,Purchase Card Statement Summary,161000 - Domestic Goods - Commercial,
Solihull MBC,Resources,Central Services to the Public,Amazon UK Marketplace,25/01/2016,6.97,Purchase Card Statement Summary,161000 - Domestic Goods - Commercial,
Solihull MBC,Children's Services - DSG Schools - Non DMT,Children & Education Services,Amazon UK Marketplace,25/01/2016,7.17,Purchase Card Statement Summary,161000 - Domestic Goods - Commercial,
Solihull MBC,Managed Growth - HRA,Housing Revenue Account,Amazon UK Marketplace,25/01/2016,7.31,General Debtors,171114 - Education - Literature,
Solihull MBC,Children's Services - DSG Schools - Non DMT,Children & Education Services,Amazon UK Marketplace,25/01/2016,7.96,Purchase Card Statement Summary,161000 - Domestic Goods - Commercial,
Solihull MBC,Children's Services - DSG Schools - Non DMT,Children & Education Services,Amazon UK Marketplace,25/01/2016,7.99,Purchase Card Statement Summary,171114 - Education - Literature,
Solihull MBC,Children's Services - DSG Schools - Non DMT,Children & Education Services,Amazon UK Marketplace,25/01/2016,8.50,Purchase Card Statement Summary,161000 - Domestic Goods - Commercial,
Solihull MBC,Managed Growth - HRA,Housing Revenue Account,Amazon UK Marketplace,25/01/2016,9.69,General Debtors,161000 - Domestic Goods - Commercial,
Solihull MBC,Children's Services - DSG Schools - Non DMT,Children & Education Services,Amazon UK Marketplace,25/01/2016,10.90,Purchase Card Statement Summary,171114 - Education - Literature,
Solihull MBC,Children's Services - DSG Schools - Non DMT,Children & Education Services,Amazon UK Marketplace,25/01/2016,11.40,Purchase Card Statement Summary,171114 - Education - Literature,
Solihull MBC,Children's Services & Skills,Children & Education Services,Amazon UK Marketplace,25/01/2016,12.19,Purchase Card Statement Summary,161000 - Domestic Goods - Commercial,
Solihull MBC,Children's Services - DSG Schools - Non DMT,Children & Education Services,Amazon UK Marketplace,25/01/2016,13.99,Purchase Card Statement Summary,171114 - Education - Literature,
Solihull MBC,Children's Services - DSG Schools - Non DMT,Children & Education Services,Amazon UK Marketplace,25/01/2016,14.62,Purchase Card Statement Summary,161000 - Domestic Goods - Commercial,
Solihull MBC,Children's Services - DSG Schools - Non DMT,Children & Education Services,Amazon UK Marketplace,25/01/2016,15.35,Purchase Card Statement Summary,171114 - Education - Literature,
Solihull MBC,Children's Services - DSG Schools - Non DMT,Children & Education Services,Amazon UK Marketplace,25/01/2016,17.50,Purchase Card Statement Summary,171114 - Education - Literature,
Solihull MBC,Resources,Central Services to the Public,Amazon UK Marketplace,25/01/2016,17.94,Purchase Card Statement Summary,161000 - Domestic Goods - Commercial,
Solihull MBC,Children's Services - DSG Schools - Non DMT,Children & Education Services,Amazon UK Marketplace,25/01/2016,19.64,Purchase Card Statement Summary,161000 - Domestic Goods - Commercial,
Solihull MBC,Resources,Central Services to the Public,Amazon UK Marketplace,25/01/2016,20.86,Purchase Card Statement Summary,161000 - Domestic Goods - Commercial,
Solihull MBC,Children's Services - DSG Schools - Non DMT,Children & Education Services,Amazon UK Marketplace,25/01/2016,22.08,Purchase Card Statement Summary,171114 - Education - Literature,
Solihull MBC,Children's Services - DSG Schools - Non DMT,Children & Education Services,Amazon UK Marketplace,25/01/2016,24.99,Purchase Card Statement Summary,161000 - Domestic Goods - Commercial,
Solihull MBC,Children's Services - DSG Schools - Non DMT,Children & Education Services,Amazon UK Marketplace,25/01/2016,26.69,Purchase Card Statement Summary,171114 - Education - Literature,
Solihull MBC,Managed Growth,Planning & Development Services,Amazon UK Marketplace,25/01/2016,27.07,Purchase Card Statement Summary,161000 - Domestic Goods - Commercial,
Solihull MBC,Resources,Corporate & Democratic Core,Amazon UK Marketplace,25/01/2016,27.96,Purchase Card Statement Summary,171114 - Education - Literature,
Solihull MBC,Communities & Adult Social Care,Adult Social Care,Amazon UK Marketplace,25/01/2016,28.12,Purchase Card Statement Summary,171114 - Education - Literature,
Solihull MBC,Children's Services - DSG Schools - Non DMT,Children & Education Services,Amazon UK Marketplace,25/01/2016,29.25,Purchase Card Statement Summary,161000 - Domestic Goods - Commercial,
Solihull MBC,Children's Services - DSG Schools - Non DMT,Children & Education Services,Amazon UK Marketplace,25/01/2016,31.92,Purchase Card Statement Summary,161000 - Domestic Goods - Commercial,
Solihull MBC,Children's Services - DSG Schools - Non DMT,Children & Education Services,Amazon UK Marketplace,25/01/2016,32.28,Purchase Card Statement Summary,171114 - Education - Literature,
Solihull MBC,Managed Growth - HRA,Housing Revenue Account,Amazon UK Marketplace,25/01/2016,32.90,General Debtors,161000 - Domestic Goods - Commercial,
Solihull MBC,Communities & Adult Social Care,Adult Social Care,Amazon UK Marketplace,25/01/2016,37.80,Purchase Card Statement Summary,161000 - Domestic Goods - Commercial,
Solihull MBC,Children's Services - DSG Schools - Non DMT,Children & Education Services,Amazon UK Marketplace,25/01/2016,38.94,Purchase Card Statement Summary,161000 - Domestic Goods - Commercial,
Solihull MBC,Children's Services - DSG Schools - Non DMT,Children & Education Services,Amazon UK Marketplace,25/01/2016,42.50,Purchase Card Statement Summary,171114 - Education - Literature,
Solihull MBC,Resources,Central Services to the Public,Amazon UK Marketplace,25/01/2016,43.04,Purchase Card Statement Summary,171114 - Education - Literature,
Solihull MBC,Business Change,Central Services to the Public,Amazon UK Marketplace,25/01/2016,51.96,Purchase Card Statement Summary,161000 - Domestic Goods - Commercial,
Solihull MBC,Business Change,Central Services to the Public,Amazon UK Marketplace,25/01/2016,58.24,Purchase Card Statement Summary,171114 - Education - Literature,
Solihull MBC,Children's Services - DSG Schools - Non DMT,Children & Education Services,Amazon UK Marketplace,25/01/2016,58.96,Purchase Card Statement Summary,161000 - Domestic Goods - Commercial,
Solihull MBC,Communities & Adult Social Care,Adult Social Care,Amazon UK Marketplace,25/01/2016,69.99,Purchase Card Statement Summary,161000 - Domestic Goods - Commercial,
Solihull MBC,Resources,Central Services to the Public,Amazon UK Marketplace,25/01/2016,177.25,Purchase Card Statement Summary,161000 - Domestic Goods - Commercial,
Solihull MBC,Resources,Central Services to the Public,Amazon UK Marketplace,25/01/2016,179.95,Purchase Card Statement Summary,161000 - Domestic Goods - Commercial,
Solihull MBC,Children's Services - DSG Schools - Non DMT,Children & Education Services,Amazon UK Marketplace,15/12/2015,1.24,Capitation,161000 - Domestic Goods - Commercial,
Solihull MBC,Children's Services - DSG Schools - Non DMT,Children & Education Services,Amazon UK Marketplace,07/12/2015,1.59,Building Maint Day To Day,161000 - Domestic Goods - Commercial,
Solihull MBC,Children's Services - DSG Schools - Non DMT,Children & Education Services,Amazon UK Marketplace,08/12/2015,2.34,Capitation,171114 - Education - Literature,
Solihull MBC,Children's Services - DSG Schools - Non DMT,Children & Education Services,Amazon UK Marketplace,15/12/2015,2.86,Capitation,161000 - Domestic Goods - Commercial,
Solihull MBC,Children's Services - DSG Schools - Non DMT,Children & Education Services,Amazon UK Marketplace,08/12/2015,2.88,Capitation,171114 - Education - Literature,
Solihull MBC,Children's Services - DSG Schools - Non DMT,Children & Education Services,Amazon UK Marketplace,10/12/2015,3.04,Capitation,161000 - Domestic Goods - Commercial,
Solihull MBC,Children's Services - DSG Schools - Non DMT,Children & Education Services,Amazon UK Marketplace,07/12/2015,3.44,Capitation,171114 - Education - Literature,
Solihull MBC,Children's Services - DSG Schools - Non DMT,Children & Education Services,Amazon UK Marketplace,16/12/2015,3.46,Capitation,161000 - Domestic Goods - Commercial,
Solihull MBC,Children's Services - DSG Schools - Non DMT,Children & Education Services,Amazon UK Marketplace,09/12/2015,3.49,Capitation,171114 - Education - Literature,
Solihull MBC,Children's Services - DSG Schools - Non DMT,Children & Education Services,Amazon UK Marketplace,09/12/2015,4.69,Capitation,161000 - Domestic Goods - Commercial,
Solihull MBC,Children's Services - DSG Schools - Non DMT,Children & Education Services,Amazon UK Marketplace,11/12/2015,4.86,Capitation,161000 - Domestic Goods - Commercial,
Solihull MBC,Children's Services - DSG Schools - Non DMT,Children & Education Services,Amazon UK Marketplace,16/12/2015,4.95,Capitation,171114 - Education - Literature,
Solihull MBC,Children's Services - DSG Schools - Non DMT,Children & Education Services,Amazon UK Marketplace,18/12/2015,5.62,Capitation,161000 - Domestic Goods - Commercial,
Solihull MBC,Children's Services - DSG Schools - Non DMT,Children & Education Services,Amazon UK Marketplace,09/12/2015,6.58,Capitation,161000 - Domestic Goods - Commercial,
Solihull MBC,Children's Services - DSG Schools - Non DMT,Children & Education Services,Amazon UK Marketplace,15/12/2015,6.66,IT Equipment & Software,161000 - Domestic Goods - Commercial,
Solihull MBC,Children's Services - DSG Schools - Non DMT,Children & Education Services,Amazon UK Marketplace,08/12/2015,7.80,Capitation,161000 - Domestic Goods - Commercial,
Solihull MBC,Children's Services - DSG Schools - Non DMT,Children & Education Services,Amazon UK Marketplace,16/12/2015,10.37,Training,161000 - Domestic Goods - Commercial,
Solihull MBC,Children's Services - DSG Schools - Non DMT,Children & Education Services,Amazon UK Marketplace,09/12/2015,12.99,Capitation,161000 - Domestic Goods - Commercial,
Solihull MBC,Children's Services - DSG Schools - Non DMT,Children & Education Services,Amazon UK Marketplace,13/12/2015,13.06,Capitation,161000 - Domestic Goods - Commercial,
Solihull MBC,Children's Services - DSG Schools - Non DMT,Children & Education Services,Amazon UK Marketplace,16/12/2015,13.49,Capitation,171114 - Education - Literature,
Solihull MBC,Children's Services - DSG Schools - Non DMT,Children & Education Services,Amazon UK Marketplace,08/12/2015,13.95,Capitation,161000 - Domestic Goods - Commercial,
Solihull MBC,Children's Services - DSG Schools - Non DMT,Children & Education Services,Amazon UK Marketplace,16/12/2015,14.95,Capitation,171114 - Education - Literature,
Solihull MBC,Children's Services - DSG Schools - Non DMT,Children & Education Services,Amazon UK Marketplace,17/12/2015,16.33,Capitation,171114 - Education - Literature,
Solihull MBC,Children's Services - DSG Schools - Non DMT,Children & Education Services,Amazon UK Marketplace,03/12/2015,19.20,Stationery,161000 - Domestic Goods - Commercial,
Solihull MBC,Children's Services - DSG Schools - Non DMT,Children & Education Services,Amazon UK Marketplace,08/12/2015,19.98,Capitation,161000 - Domestic Goods - Commercial,
Solihull MBC,Children's Services - DSG Schools - Non DMT,Children & Education Services,Amazon UK Marketplace,08/12/2015,20.99,Capitation,161000 - Domestic Goods - Commercial,
Solihull MBC,Children's Services - DSG Schools - Non DMT,Children & Education Services,Amazon UK Marketplace,16/12/2015,21.94,Capitation,161000 - Domestic Goods - Commercial,
Solihull MBC,Children's Services - DSG Central.,Children & Education Services,Amazon UK Marketplace,03/12/2015,22.24,Materials,161000 - Domestic Goods - Commercial,
Solihull MBC,Children's Services - DSG Schools - Non DMT,Children & Education Services,Amazon UK Marketplace,15/12/2015,22.49,IT Equipment & Software,161000 - Domestic Goods - Commercial,
Solihull MBC,Children's Services - DSG Schools - Non DMT,Children & Education Services,Amazon UK Marketplace,28/12/2015,24.99,IT Equipment & Software,161000 - Domestic Goods - Commercial,
Solihull MBC,Children's Services - DSG Schools - Non DMT,Children & Education Services,Amazon UK Marketplace,07/12/2015,24.99,Capitation,161000 - Domestic Goods - Commercial,
Solihull MBC,Children's Services - DSG Schools - Non DMT,Children & Education Services,Amazon UK Marketplace,10/12/2015,25.00,Capitation,161000 - Domestic Goods - Commercial,
Solihull MBC,Children's Services - DSG Schools - Non DMT,Children & Education Services,Amazon UK Marketplace,18/12/2015,29.28,Capitation,161000 - Domestic Goods - Commercial,
Solihull MBC,Children's Services - DSG Schools - Non DMT,Children & Education Services,Amazon UK Marketplace,04/12/2015,38.20,Capitation,161000 - Domestic Goods - Commercial,
Solihull MBC,Children's Services - DSG Schools - Non DMT,Children & Education Services,Amazon UK Marketplace,07/12/2015,41.97,Capitation,171114 - Education - Literature,
Solihull MBC,Children's Services - DSG Schools - Non DMT,Children & Education Services,Amazon UK Marketplace,17/12/2015,42.51,Capitation,161000 - Domestic Goods - Commercial,
Solihull MBC,Children's Services - DSG Schools - Non DMT,Children & Education Services,Amazon UK Marketplace,07/12/2015,45.96,Capitation,161000 - Domestic Goods - Commercial,
Solihull MBC,Children's Services - DSG Schools - Non DMT,Children & Education Services,Amazon UK Marketplace,15/12/2015,46.96,Capitation,161000 - Domestic Goods - Commercial,
Solihull MBC,Children's Services - DSG Schools - Non DMT,Children & Education Services,Amazon UK Marketplace,17/12/2015,50.22,Capitation,161000 - Domestic Goods - Commercial,
Solihull MBC,Children's Services - DSG Schools - Non DMT,Children & Education Services,Amazon UK Marketplace,19/12/2015,52.67,Capitation,161000 - Domestic Goods - Commercial,
Solihull MBC,Children's Services - DSG Schools - Non DMT,Children & Education Services,Amazon UK Marketplace,11/12/2015,68.72,Training,161000 - Domestic Goods - Commercial,
Solihull MBC,Children's Services - DSG Schools - Non DMT,Children & Education Services,Amazon UK Marketplace,05/12/2015,69.98,Capitation,161000 - Domestic Goods - Commercial,
Solihull MBC,Children's Services - DSG Schools - Non DMT,Children & Education Services,Amazon UK Retail,25/01/2016,3.99,Purchase Card Statement Summary,161000 - Domestic Goods - Commercial,
Solihull MBC,Children's Services - DSG Schools - Non DMT,Children & Education Services,Amazon UK Retail,25/01/2016,4.98,Purchase Card Statement Summary,161000 - Domestic Goods - Commercial,
Solihull MBC,Children's Services - DSG Schools - Non DMT,Children & Education Services,Amazon UK Retail,25/01/2016,5.14,Capitation,161000 - Domestic Goods - Commercial,
Solihull MBC,Children's Services - DSG Schools - Non DMT,Children & Education Services,Amazon UK Retail,25/01/2016,9.09,Capitation,161000 - Domestic Goods - Commercial,
Solihull MBC,Resources,Central Services to the Public,Amazon UK Retail,25/01/2016,9.99,Purchase Card Statement Summary,161000 - Domestic Goods - Commercial,
Solihull MBC,Children's Services - DSG Schools - Non DMT,Children & Education Services,Amazon UK Retail,25/01/2016,13.98,Capitation,161000 - Domestic Goods - Commercial,
Solihull MBC,Communities & Adult Social Care,Adult Social Care,Amazon UK Retail,25/01/2016,15.71,Purchase Card Statement Summary,161000 - Domestic Goods - Commercial,
Solihull MBC,Communities & Adult Social Care,Adult Social Care,Amazon UK Retail,25/01/2016,15.71,Purchase Card Statement Summary,161000 - Domestic Goods - Commercial,
Solihull MBC,Children's Services - DSG Schools - Non DMT,Children & Education Services,Amazon UK Retail,25/01/2016,15.87,Purchase Card Statement Summary,161000 - Domestic Goods - Commercial,
Solihull MBC,Communities & Adult Social Care,Adult Social Care,Amazon UK Retail,25/01/2016,17.05,Purchase Card Statement Summary,161000 - Domestic Goods - Commercial,
Solihull MBC,Children's Services - DSG Schools - Non DMT,Children & Education Services,Amazon UK Retail,25/01/2016,20.98,Purchase Card Statement Summary,161000 - Domestic Goods - Commercial,
Solihull MBC,Children's Services - DSG Schools - Non DMT,Children & Education Services,Amazon UK Retail,25/01/2016,21.50,Purchase Card Statement Summary,161000 - Domestic Goods - Commercial,
Solihull MBC,Children's Services - DSG Schools - Non DMT,Children & Education Services,Amazon UK Retail,25/01/2016,21.74,Purchase Card Statement Summary,161000 - Domestic Goods - Commercial,
Solihull MBC,Children's Services - DSG Schools - Non DMT,Children & Education Services,Amazon UK Retail,25/01/2016,23.46,Purchase Card Statement Summary,161000 - Domestic Goods - Commercial,
Solihull MBC,Children's Services - DSG Schools - Non DMT,Children & Education Services,Amazon UK Retail,25/01/2016,25.34,Purchase Card Statement Summary,161000 - Domestic Goods - Commercial,
Solihull MBC,Children's Services - DSG Schools - Non DMT,Children & Education Services,Amazon UK Retail,25/01/2016,28.73,Purchase Card Statement Summary,161000 - Domestic Goods - Commercial,
Solihull MBC,Communities & Adult Social Care,Adult Social Care,Amazon UK Retail,25/01/2016,29.99,Purchase Card Statement Summary,161000 - Domestic Goods - Commercial,
Solihull MBC,Children's Services - DSG Schools - Non DMT,Children & Education Services,Amazon UK Retail,25/01/2016,33.86,Purchase Card Statement Summary,161000 - Domestic Goods - Commercial,
Solihull MBC,Resources,Central Services to the Public,Amazon UK Retail,25/01/2016,34.99,Purchase Card Statement Summary,161000 - Domestic Goods - Commercial,
Solihull MBC,Children's Services - DSG Schools - Non DMT,Children & Education Services,Amazon UK Retail,25/01/2016,41.94,Purchase Card Statement Summary,161000 - Domestic Goods - Commercial,
Solihull MBC,Children's Services - DSG Schools - Non DMT,Children & Education Services,Amazon UK Retail,25/01/2016,44.75,Purchase Card Statement Summary,161000 - Domestic Goods - Commercial,
Solihull MBC,Children's Services & Skills,Children & Education Services,Amazon UK Retail,25/01/2016,66.70,Purchase Card Statement Summary,161000 - Domestic Goods - Commercial,
Solihull MBC,Resources,Central Services to the Public,Amazon UK Retail,25/01/2016,121.84,Purchase Card Statement Summary,161000 - Domestic Goods - Commercial,
Solihull MBC,Children's Services - DSG Schools - Non DMT,Children & Education Services,Amazon UK Retail,04/12/2015,4.99,Capitation,161000 - Domestic Goods - Commercial,
Solihull MBC,Children's Services - DSG Schools - Non DMT,Children & Education Services,Amazon UK Retail,17/12/2015,6.66,Furniture & Equipment,161000 - Domestic Goods - Commercial,
Solihull MBC,Children's Services - DSG Schools - Non DMT,Children & Education Services,Amazon UK Retail,14/12/2015,8.11,Capitation,161000 - Domestic Goods - Commercial,
Solihull MBC,Children's Services - DSG Schools - Non DMT,Children & Education Services,Amazon UK Retail,29/12/2015,10.55,Capitation,161000 - Domestic Goods - Commercial,
Solihull MBC,Children's Services - DSG Central.,Children & Education Services,Amazon UK Retail,03/12/2015,12.97,Materials,161000 - Domestic Goods - Commercial,
Solihull MBC,Children's Services - DSG Schools - Non DMT,Children & Education Services,Amazon UK Retail,08/12/2015,13.17,Furniture & Equipment,161000 - Domestic Goods - Commercial,
Solihull MBC,Children's Services - DSG Schools - Non DMT,Children & Education Services,Amazon UK Retail,05/12/2015,15.00,Capitation,161000 - Domestic Goods - Commercial,
Solihull MBC,Children's Services - DSG Schools - Non DMT,Children & Education Services,Amazon UK Retail,17/12/2015,15.40,Telephones,161000 - Domestic Goods - Commercial,
Solihull MBC,Children's Services - DSG Schools - Non DMT,Children & Education Services,Amazon UK Retail,20/12/2015,16.67,Capitation,161000 - Domestic Goods - Commercial,
Solihull MBC,Children's Services - DSG Schools - Non DMT,Children & Education Services,Amazon UK Retail,04/12/2015,17.47,IT Equipment & Software,161000 - Domestic Goods - Commercial,
Solihull MBC,Children's Services - DSG Schools - Non DMT,Children & Education Services,Amazon UK Retail,13/12/2015,18.39,Building Maint Planned,161000 - Domestic Goods - Commercial,
Solihull MBC,Children's Services - DSG Schools - Non DMT,Children & Education Services,Amazon UK Retail,08/12/2015,19.00,Capitation,161000 - Domestic Goods - Commercial,
Solihull MBC,Children's Services - DSG Schools - Non DMT,Children & Education Services,Amazon UK Retail,06/12/2015,20.97,Capitation,161000 - Domestic Goods - Commercial,
Solihull MBC,Children's Services - DSG Schools - Non DMT,Children & Education Services,Amazon UK Retail,16/12/2015,24.79,Capitation,161000 - Domestic Goods - Commercial,
Solihull MBC,Children's Services - DSG Schools - Non DMT,Children & Education Services,Amazon UK Retail,04/12/2015,26.99,Capitation,161000 - Domestic Goods - Commercial,
Solihull MBC,Children's Services - DSG Schools - Non DMT,Children & Education Services,Amazon UK Retail,09/12/2015,28.95,Capitation,161000 - Domestic Goods - Commercial,
Solihull MBC,Children's Services - DSG Schools - Non DMT,Children & Education Services,Amazon UK Retail,03/12/2015,33.83,Furniture & Equipment,161000 - Domestic Goods - Commercial,
Solihull MBC,Children's Services - DSG Schools - Non DMT,Children & Education Services,Amazon UK Retail,05/12/2015,43.96,Capitation,161000 - Domestic Goods - Commercial,
Solihull MBC,Children's Services - DSG Schools - Non DMT,Children & Education Services,Amazon UK Retail,04/12/2015,49.66,Capitation,161000 - Domestic Goods - Commercial,
Solihull MBC,Children's Services - DSG Schools - Non DMT,Children & Education Services,Amazon UK Retail,13/12/2015,53.77,Capitation,161000 - Domestic Goods - Commercial,
Solihull MBC,Children's Services - DSG Schools - Non DMT,Children & Education Services,Amazon UK Retail,16/12/2015,56.60,Capitation,161000 - Domestic Goods - Commercial,
Solihull MBC,Children's Services - DSG Schools - Non DMT,Children & Education Services,Amazon UK Retail,11/12/2015,65.59,Capitation,161000 - Domestic Goods - Commercial,
Solihull MBC,Children's Services - DSG Schools - Non DMT,Children & Education Services,Amazon UK Retail,03/12/2015,86.20,Capitation,161000 - Domestic Goods - Commercial,
Solihull MBC,Communities & Adult Social Care,Adult Social Care,Ao Retail Limited,25/01/2016,119.00,Purchase Card Statement Summary,169999 - Domestic Goods - Not Elsewhere Classified,
Solihull MBC,Resources,Central Services to the Public,Ao Retail Limited,21/12/2015,107.49,Premises-Fixtures & Fittings,169999 - Domestic Goods - Not Elsewhere Classified,
Solihull MBC,Children's Services & Skills,Children & Education Services,Argos Direct,25/01/2016,-119.99,Purchase Card Statement Summary,169999 - Domestic Goods - Not Elsewhere Classified,
Solihull MBC,Children's Services & Skills,Children & Education Services,Argos Direct,25/01/2016,-8.95,Purchase Card Statement Summary,169999 - Domestic Goods - Not Elsewhere Classified,
Solihull MBC,Children's Services & Skills,Children & Education Services,Argos Ltd,25/01/2016,17.99,Purchase Card Statement Summary,169999 - Domestic Goods - Not Elsewhere Classified,
Solihull MBC,Children's Services - DSG Schools - Non DMT,Children & Education Services,Argos Ltd,25/01/2016,19.99,Purchase Card Statement Summary,169999 - Domestic Goods - Not Elsewhere Classified,
Solihull MBC,Communities & Adult Social Care,Adult Social Care,Argos Ltd,25/01/2016,24.99,Purchase Card Statement Summary,169999 - Domestic Goods - Not Elsewhere Classified,
Solihull MBC,Communities & Adult Social Care,Adult Social Care,Argos Ltd,25/01/2016,35.04,Purchase Card Statement Summary,169999 - Domestic Goods - Not Elsewhere Classified,
Solihull MBC,Communities & Adult Social Care,Adult Social Care,Argos Ltd,25/01/2016,49.99,Purchase Card Statement Summary,169999 - Domestic Goods - Not Elsewhere Classified,
Solihull MBC,Children's Services - DSG Schools - Non DMT,Children & Education Services,Argos Ltd,25/01/2016,59.99,Purchase Card Statement Summary,169999 - Domestic Goods - Not Elsewhere Classified,
Solihull MBC,Children's Services - DSG Schools - Non DMT,Children & Education Services,Argos Ltd,16/12/2015,179.67,Capitation,169999 - Domestic Goods - Not Elsewhere Classified,
Solihull MBC,Children's Services & Skills,Children & Education Services,Argos Retail Group,25/01/2016,-39.99,Purchase Card Statement Summary,169999 - Domestic Goods - Not Elsewhere Classified,
Solihull MBC,Children's Services & Skills,Children & Education Services,Argos Retail Group,25/01/2016,9.99,Purchase Card Statement Summary,169999 - Domestic Goods - Not Elsewhere Classified,
Solihull MBC,Communities & Adult Social Care,Adult Social Care,Argos Retail Group,25/01/2016,24.99,Purchase Card Statement Summary,169999 - Domestic Goods - Not Elsewhere Classified,
Solihull MBC,Children's Services & Skills,Children & Education Services,Argos Retail Group,25/01/2016,29.98,Purchase Card Statement Summary,169999 - Domestic Goods - Not Elsewhere Classified,
Solihull MBC,Children's Services & Skills,Children & Education Services,Argos Retail Group,25/01/2016,40.47,Purchase Card Statement Summary,169999 - Domestic Goods - Not Elsewhere Classified,
Solihull MBC,Children's Services - DSG Schools - Non DMT,Children & Education Services,Argos Retail Group,25/01/2016,62.76,Purchase Card Statement Summary,169999 - Domestic Goods - Not Elsewhere Classified,
Solihull MBC,Resources,Central Services to the Public,Argos Retail Group,25/01/2016,82.97,Purchase Card Statement Summary,169999 - Domestic Goods - Not Elsewhere Classified,
Solihull MBC,Children's Services & Skills,Children & Education Services,Argos Retail Group,25/01/2016,84.07,Purchase Card Statement Summary,169999 - Domestic Goods - Not Elsewhere Classified,
Solihull MBC,Children's Services & Skills,Children & Education Services,Argos Retail Group,25/01/2016,99.95,Purchase Card Statement Summary,169999 - Domestic Goods - Not Elsewhere Classified,
Solihull MBC,Children's Services & Skills,Children & Education Services,Argos Retail Group,25/01/2016,101.68,Purchase Card Statement Summary,169999 - Domestic Goods - Not Elsewhere Classified,
Solihull MBC,Children's Services & Skills,Children & Education Services,Argos Retail Group,25/01/2016,103.99,Purchase Card Statement Summary,169999 - Domestic Goods - Not Elsewhere Classified,
Solihull MBC,Children's Services & Skills,Children & Education Services,Argos Retail Group,25/01/2016,128.94,Purchase Card Statement Summary,169999 - Domestic Goods - Not Elsewhere Classified,
Solihull MBC,Resources,Central Services to the Public,Argos Retail Group,25/01/2016,158.92,Purchase Card Statement Summary,169999 - Domestic Goods - Not Elsewhere Classified,
Solihull MBC,Resources,Central Services to the Public,Argos Retail Group,25/01/2016,158.94,Purchase Card Statement Summary,169999 - Domestic Goods - Not Elsewhere Classified,
Solihull MBC,Children's Services - DSG Schools - Non DMT,Children & Education Services,Argos Retail Group,25/01/2016,163.46,Purchase Card Statement Summary,169999 - Domestic Goods - Not Elsewhere Classified,
Solihull MBC,Resources,Central Services to the Public,Argos Retail Group,25/01/2016,165.14,Purchase Card Statement Summary,169999 - Domestic Goods - Not Elsewhere Classified,
Solihull MBC,Children's Services & Skills,Children & Education Services,Argos Retail Group,25/01/2016,169.15,Purchase Card Statement Summary,169999 - Domestic Goods - Not Elsewhere Classified,
Solihull MBC,Resources,Central Services to the Public,Argos Retail Group,25/01/2016,181.48,Purchase Card Statement Summary,169999 - Domestic Goods - Not Elsewhere Classified,
Solihull MBC,Children's Services & Skills,Children & Education Services,Argos Retail Group,25/01/2016,209.14,Purchase Card Statement Summary,169999 - Domestic Goods - Not Elsewhere Classified,
Solihull MBC,Resources,Corporate & Democratic Core,Argos Retail Group,25/01/2016,328.92,Purchase Card Statement Summary,169999 - Domestic Goods - Not Elsewhere Classified,
Solihull MBC,Resources,Central Services to the Public,Argos Retail Group,25/01/2016,335.93,Purchase Card Statement Summary,169999 - Domestic Goods - Not Elsewhere Classified,
Solihull MBC,Resources,Corporate & Democratic Core,Argos Retail Group,25/01/2016,946.92,Purchase Card Statement Summary,169999 - Domestic Goods - Not Elsewhere Classified,
Solihull MBC,Children's Services - DSG Schools - Non DMT,Children & Education Services,Argos Retail Group,19/12/2015,71.91,IT Equipment & Software,169999 - Domestic Goods - Not Elsewhere Classified,
Solihull MBC,Children's Services - DSG Schools - Non DMT,Children & Education Services,Argos Selly Oak,23/12/2015,102.07,Furniture & Equipment,169999 - Domestic Goods - Not Elsewhere Classified,
Solihull MBC,Children's Services - DSG Schools - Non DMT,Children & Education Services,Asda  Stores 5880,25/01/2016,18.50,Purchase Card Statement Summary,111200 - Catering - Food & Beverages,
Solihull MBC,Communities & Adult Social Care,Adult Social Care,Asda  Stores 5880,25/01/2016,21.00,Purchase Card Statement Summary,111200 - Catering - Food & Beverages,
Solihull MBC,Children's Services - DSG Schools - Non DMT,Children & Education Services,Asda  Stores 5880,04/12/2015,7.00,Furniture & Equipment,111200 - Catering - Food & Beverages,
Solihull MBC,Children's Services - DSG Schools - Non DMT,Children & Education Services,Asda  Stores 5880,16/12/2015,24.90,Capitation,111200 - Catering - Food & Beverages,
Solihull MBC,Children's Services - DSG Schools - Non DMT,Children & Education Services,Asda  Stores 5880,12/12/2015,111.16,Catering Provisions,111200 - Catering - Food & Beverages,
Solihull MBC,Children's Services & Skills,Children & Education Services,Asda 4387,25/01/2016,-125.00,Purchase Card Statement Summary,111200 - Catering - Food & Beverages,
Solihull MBC,Children's Services & Skills,Children & Education Services,Asda 4387,25/01/2016,-8.95,Purchase Card Statement Summary,111200 - Catering - Food & Beverages,
Solihull MBC,Children's Services & Skills,Children & Education Services,Asda 4387,25/01/2016,22.50,Purchase Card Statement Summary,111200 - Catering - Food & Beverages,
Solihull MBC,Children's Services - DSG Schools - Non DMT,Children & Education Services,Asda 4387,08/12/2015,24.50,Capitation,111200 - Catering - Food & Beverages,
Solihull MBC,Children's Services - DSG Schools - Non DMT,Children & Education Services,Asda 4387,15/12/2015,99.50,Capitation,111200 - Catering - Food & Beverages,
Solihull MBC,Children's Services - DSG Schools - Non DMT,Children & Education Services,Asda 4387,08/12/2015,122.46,Furniture & Equipment,111200 - Catering - Food & Beverages,
Solihull MBC,Children's Services - DSG Schools - Non DMT,Children & Education Services,Asda Home Shopping,25/01/2016,-3.30,Purchase Card Statement Summary,111200 - Catering - Food & Beverages,
Solihull MBC,Children's Services - DSG Schools - Non DMT,Children & Education Services,Asda Home Shopping,25/01/2016,-0.16,Purchase Card Statement Summary,111200 - Catering - Food & Beverages,
Solihull MBC,Children's Services - DSG Schools - Non DMT,Children & Education Services,Asda Home Shopping,25/01/2016,71.74,Purchase Card Statement Summary,111200 - Catering - Food & Beverages,
Solihull MBC,Children's Services - DSG Schools - Non DMT,Children & Education Services,Asda Home Shopping,25/01/2016,182.45,Purchase Card Statement Summary,111200 - Catering - Food & Beverages,
Solihull MBC,Children's Services - DSG Schools - Non DMT,Children & Education Services,Asda Home Shopping,17/12/2015,-5.73,Visits & Pupil Activities,111200 - Catering - Food & Beverages,
Solihull MBC,Children's Services - DSG Schools - Non DMT,Children & Education Services,Asda Home Shopping,16/12/2015,-2.60,Visits & Pupil Activities,111200 - Catering - Food & Beverages,
Solihull MBC,Children's Services - DSG Schools - Non DMT,Children & Education Services,Asda Home Shopping,14/12/2015,-2.48,Capitation,111200 - Catering - Food & Beverages,
Solihull MBC,Children's Services - DSG Schools - Non DMT,Children & Education Services,Asda Home Shopping,14/12/2015,-0.60,Visits & Pupil Activities,111200 - Catering - Food & Beverages,
Solihull MBC,Children's Services - DSG Schools - Non DMT,Children & Education Services,Asda Home Shopping,15/12/2015,0.40,Visits & Pupil Activities,111200 - Catering - Food & Beverages,
Solihull MBC,Children's Services - DSG Schools - Non DMT,Children & Education Services,Asda Home Shopping,15/12/2015,0.40,Visits & Pupil Activities,111200 - Catering - Food & Beverages,
Solihull MBC,Children's Services - DSG Schools - Non DMT,Children & Education Services,Asda Home Shopping,14/12/2015,0.40,Visits & Pupil Activities,111200 - Catering - Food & Beverages,
Solihull MBC,Children's Services - DSG Schools - Non DMT,Children & Education Services,Asda Home Shopping,14/12/2015,0.40,Visits & Pupil Activities,111200 - Catering - Food & Beverages,
Solihull MBC,Children's Services - DSG Schools - Non DMT,Children & Education Services,Asda Home Shopping,07/12/2015,0.40,Capitation,111200 - Catering - Food & Beverages,
Solihull MBC,Children's Services - DSG Schools - Non DMT,Children & Education Services,Asda Home Shopping,08/12/2015,0.40,Capitation,111200 - Catering - Food & Beverages,
Solihull MBC,Children's Services - DSG Schools - Non DMT,Children & Education Services,Asda Home Shopping,07/12/2015,4.78,Visits & Pupil Activities,111200 - Catering - Food & Beverages,
Solihull MBC,Children's Services - DSG Schools - Non DMT,Children & Education Services,Asda Home Shopping,07/12/2015,26.30,Capitation,111200 - Catering - Food & Beverages,
Solihull MBC,Children's Services - DSG Schools - Non DMT,Children & Education Services,Asda Home Shopping,09/12/2015,27.00,Purchase Card Statement Summary,111200 - Catering - Food & Beverages,
Solihull MBC,Children's Services - DSG Schools - Non DMT,Children & Education Services,Asda Home Shopping,14/12/2015,45.17,Capitation,111200 - Catering - Food & Beverages,
Solihull MBC,Children's Services - DSG Schools - Non DMT,Children & Education Services,Asda Home Shopping,14/12/2015,53.00,Visits & Pupil Activities,111200 - Catering - Food & Beverages,
Solihull MBC,Children's Services - DSG Schools - Non DMT,Children & Education Services,Asda Home Shopping,14/12/2015,59.62,Visits & Pupil Activities,111200 - Catering - Food & Beverages,
Solihull MBC,Children's Services - DSG Schools - Non DMT,Children & Education Services,Asda Home Shopping,14/12/2015,60.82,Visits & Pupil Activities,111200 - Catering - Food & Beverages,
Solihull MBC,Children's Services - DSG Schools - Non DMT,Children & Education Services,Asda Home Shopping,16/12/2015,64.37,Visits & Pupil Activities,111200 - Catering - Food & Beverages,
Solihull MBC,Children's Services - DSG Schools - Non DMT,Children & Education Services,Asda Home Shopping,15/12/2015,66.16,Visits & Pupil Activities,111200 - Catering - Food & Beverages,
Solihull MBC,Children's Services - DSG Schools - Non DMT,Children & Education Services,Asda Home Shopping,17/12/2015,68.64,Visits & Pupil Activities,111200 - Catering - Food & Beverages,
Solihull MBC,Children's Services - DSG Schools - Non DMT,Children & Education Services,Asda Home Shopping,15/12/2015,71.30,Visits & Pupil Activities,111200 - Catering - Food & Beverages,
Solihull MBC,Children's Services - DSG Schools - Non DMT,Children & Education Services,Asda Home Shopping,08/12/2015,71.94,Capitation,111200 - Catering - Food & Beverages,
Solihull MBC,Children's Services - DSG Schools - Non DMT,Children & Education Services,Asda Home Shopping,07/12/2015,90.21,Visits & Pupil Activities,111200 - Catering - Food & Beverages,
Solihull MBC,Children's Services - DSG Schools - Non DMT,Children & Education Services,Asda Home Shopping,16/12/2015,148.24,Furniture & Equipment,111200 - Catering - Food & Beverages,
Solihull MBC,Children's Services - DSG Schools - Non DMT,Children & Education Services,Asda Store 4376,14/12/2015,19.34,Capitation,111200 - Catering - Food & Beverages,
Solihull MBC,Communities & Adult Social Care,Adult Social Care,Asda Stores 5881,25/01/2016,3.00,Purchase Card Statement Summary,111200 - Catering - Food & Beverages,
Solihull MBC,Children's Services - DSG Schools - Non DMT,Children & Education Services,Asda Stores 5881,25/01/2016,3.11,Purchase Card Statement Summary,111200 - Catering - Food & Beverages,
Solihull MBC,Communities & Adult Social Care,Adult Social Care,Asda Stores 5881,25/01/2016,4.70,Purchase Card Statement Summary,111200 - Catering - Food & Beverages,
Solihull MBC,Children's Services - DSG Schools - Non DMT,Children & Education Services,Asda Stores 5881,25/01/2016,7.00,Purchase Card Statement Summary,111200 - Catering - Food & Beverages,
Solihull MBC,Children's Services & Skills,Children & Education Services,Asda Stores 5881,25/01/2016,7.34,Purchase Card Statement Summary,111200 - Catering - Food & Beverages,
Solihull MBC,Communities & Adult Social Care,Adult Social Care,Asda Stores 5881,25/01/2016,7.75,Purchase Card Statement Summary,111200 - Catering - Food & Beverages,
Solihull MBC,Children's Services & Skills,Children & Education Services,Asda Stores 5881,25/01/2016,8.00,Purchase Card Statement Summary,111200 - Catering - Food & Beverages,
Solihull MBC,Communities & Adult Social Care,Adult Social Care,Asda Stores 5881,25/01/2016,9.41,Purchase Card Statement Summary,111200 - Catering - Food & Beverages,
Solihull MBC,Children's Services - DSG Schools - Non DMT,Children & Education Services,Asda Stores 5881,25/01/2016,10.00,Purchase Card Statement Summary,111200 - Catering - Food & Beverages,
Solihull MBC,Communities & Adult Social Care,Adult Social Care,Asda Stores 5881,25/01/2016,12.00,Purchase Card Statement Summary,111200 - Catering - Food & Beverages,
Solihull MBC,Communities & Adult Social Care,Adult Social Care,Asda Stores 5881,25/01/2016,12.47,Purchase Card Statement Summary,111200 - Catering - Food & Beverages,
Solihull MBC,Communities & Adult Social Care,Adult Social Care,Asda Stores 5881,25/01/2016,14.43,Purchase Card Statement Summary,111200 - Catering - Food & Beverages,
Solihull MBC,Communities & Adult Social Care,Adult Social Care,Asda Stores 5881,25/01/2016,14.66,Purchase Card Statement Summary,111200 - Catering - Food & Beverages,
Solihull MBC,Communities & Adult Social Care,Adult Social Care,Asda Stores 5881,25/01/2016,17.05,Purchase Card Statement Summary,111200 - Catering - Food & Beverages,
Solihull MBC,Communities & Adult Social Care,Adult Social Care,Asda Stores 5881,25/01/2016,17.21,Purchase Card Statement Summary,111200 - Catering - Food & Beverages,
Solihull MBC,Children's Services - DSG Schools - Non DMT,Children & Education Services,Asda Stores 5881,25/01/2016,18.43,Purchase Card Statement Summary,111200 - Catering - Food & Beverages,
Solihull MBC,Communities & Adult Social Care,Adult Social Care,Asda Stores 5881,25/01/2016,18.44,Purchase Card Statement Summary,111200 - Catering - Food & Beverages,
Solihull MBC,Communities & Adult Social Care,Adult Social Care,Asda Stores 5881,25/01/2016,19.21,Purchase Card Statement Summary,111200 - Catering - Food & Beverages,
Solihull MBC,Children's Services & Skills,Children & Education Services,Asda Stores 5881,25/01/2016,20.00,Purchase Card Statement Summary,111200 - Catering - Food & Beverages,
Solihull MBC,Communities & Adult Social Care,Adult Social Care,Asda Stores 5881,25/01/2016,21.60,Purchase Card Statement Summary,111200 - Catering - Food & Beverages,
Solihull MBC,Communities & Adult Social Care,Adult Social Care,Asda Stores 5881,25/01/2016,24.20,Purchase Card Statement Summary,111200 - Catering - Food & Beverages,
Solihull MBC,Communities & Adult Social Care,Adult Social Care,Asda Stores 5881,25/01/2016,24.48,Purchase Card Statement Summary,111200 - Catering - Food & Beverages,
Solihull MBC,Communities & Adult Social Care,Adult Social Care,Asda Stores 5881,25/01/2016,29.46,Purchase Card Statement Summary,111200 - Catering - Food & Beverages,
Solihull MBC,Communities & Adult Social Care,Adult Social Care,Asda Stores 5881,25/01/2016,32.06,Purchase Card Statement Summary,111200 - Catering - Food & Beverages,
Solihull MBC,Children's Services & Skills,Children & Education Services,Asda Stores 5881,25/01/2016,40.00,Purchase Card Statement Summary,111200 - Catering - Food & Beverages,
Solihull MBC,Communities & Adult Social Care,Adult Social Care,Asda Stores 5881,25/01/2016,45.00,Purchase Card Statement Summary,111200 - Catering - Food & Beverages,
Solihull MBC,Communities & Adult Social Care,Adult Social Care,Asda Stores 5881,25/01/2016,49.79,Purchase Card Statement Summary,111200 - Catering - Food & Beverages,
Solihull MBC,Children's Services & Skills,Children & Education Services,Asda Stores 5881,25/01/2016,50.00,Purchase Card Statement Summary,111200 - Catering - Food & Beverages,
Solihull MBC,Communities & Adult Social Care,Adult Social Care,Asda Stores 5881,25/01/2016,51.01,Purchase Card Statement Summary,111200 - Catering - Food & Beverages,
Solihull MBC,Children's Services - DSG Schools - Non DMT,Children & Education Services,Asda Stores 5881,25/01/2016,64.02,Purchase Card Statement Summary,111200 - Catering - Food & Beverages,
Solihull MBC,Children's Services & Skills,Children & Education Services,Asda Stores 5881,25/01/2016,64.51,Purchase Card Statement Summary,111200 - Catering - Food & Beverages,
Solihull MBC,Communities & Adult Social Care,Adult Social Care,Asda Stores 5881,25/01/2016,66.64,Purchase Card Statement Summary,111200 - Catering - Food & Beverages,
Solihull MBC,Communities & Adult Social Care,Adult Social Care,Asda Stores 5881,25/01/2016,86.53,Purchase Card Statement Summary,111200 - Catering - Food & Beverages,
Solihull MBC,Communities & Adult Social Care,Adult Social Care,Asda Stores 5881,25/01/2016,87.45,Purchase Card Statement Summary,111200 - Catering - Food & Beverages,
Solihull MBC,Communities & Adult Social Care,Adult Social Care,Asda Stores 5881,25/01/2016,102.13,Purchase Card Statement Summary,111200 - Catering - Food & Beverages,
Solihull MBC,Communities & Adult Social Care,Adult Social Care,Asda Stores 5881,25/01/2016,104.70,Purchase Card Statement Summary,111200 - Catering - Food & Beverages,
Solihull MBC,Communities & Adult Social Care,Adult Social Care,Asda Stores 5881,25/01/2016,107.86,Purchase Card Statement Summary,111200 - Catering - Food & Beverages,
Solihull MBC,Communities & Adult Social Care,Adult Social Care,Asda Stores 5881,25/01/2016,112.63,Purchase Card Statement Summary,111200 - Catering - Food & Beverages,
Solihull MBC,Communities & Adult Social Care,Adult Social Care,Asda Stores 5881,25/01/2016,154.03,Purchase Card Statement Summary,111200 - Catering - Food & Beverages,
Solihull MBC,Children's Services & Skills,Children & Education Services,Asda Stores 5881,25/01/2016,162.37,Purchase Card Statement Summary,111200 - Catering - Food & Beverages,
Solihull MBC,Communities & Adult Social Care,Adult Social Care,Asda Stores 5881,25/01/2016,165.87,Purchase Card Statement Summary,111200 - Catering - Food & Beverages,
Solihull MBC,Children's Services - DSG Schools - Non DMT,Children & Education Services,Asda Stores 5881,10/12/2015,5.83,Capitation,111200 - Catering - Food & Beverages,
Solihull MBC,Children's Services - DSG Schools - Non DMT,Children & Education Services,Asda Stores 5881,07/12/2015,25.00,Capitation,111200 - Catering - Food & Beverages,
Solihull MBC,Children's Services - DSG Schools - Non DMT,Children & Education Services,Asda Superstore,25/01/2016,35.00,Purchase Card Statement Summary,111200 - Catering - Food & Beverages,
Solihull MBC,Communities & Adult Social Care,Adult Social Care,Asda Superstore,25/01/2016,150.47,Purchase Card Statement Summary,111200 - Catering - Food & Beverages,
Solihull MBC,Children's Services - DSG Schools - Non DMT,Children & Education Services,Asda Superstore,25/01/2016,194.59,Purchase Card Statement Summary,111200 - Catering - Food & Beverages,
Solihull MBC,Children's Services - DSG Schools - Non DMT,Children & Education Services,Asda Superstore,06/12/2015,3.82,Capitation,111200 - Catering - Food & Beverages,
Solihull MBC,Children's Services - DSG Schools - Non DMT,Children & Education Services,Asda Superstore,08/12/2015,9.62,Capitation,111200 - Catering - Food & Beverages,
Solihull MBC,Children's Services - DSG Schools - Non DMT,Children & Education Services,ATG Tickets,25/01/2016,324.00,Purchase Card Statement Summary,291300 - Arts & Leisure Services - Performing Arts,
Solihull MBC,Children's Services - DSG Schools - Non DMT,Children & Education Services,Athena Crafts Ltd,07/12/2015,28.49,Capitation,169999 - Domestic Goods - Not Elsewhere Classified,
Solihull MBC,Communities & Adult Social Care,Adult Social Care,B & Q,25/01/2016,-83.00,Purchase Card Statement Summary,102500 - Building Construction Materials - Timber,
Solihull MBC,Managed Growth,Highways & Transport Services,B & Q,25/01/2016,-8.66,Purchase Card Statement Summary,102500 - Building Construction Materials - Timber,
Solihull MBC,Managed Growth,Cultural & Related Services,B & Q,25/01/2016,3.48,Purchase Card Statement Summary,102500 - Building Construction Materials - Timber,
Solihull MBC,Managed Growth,Highways & Transport Services,B & Q,25/01/2016,8.66,Purchase Card Statement Summary,102500 - Building Construction Materials - Timber,
Solihull MBC,Children's Services - DSG Schools - Non DMT,Children & Education Services,B & Q,25/01/2016,40.00,Purchase Card Statement Summary,102500 - Building Construction Materials - Timber,
Solihull MBC,Children's Services - DSG Schools - Non DMT,Children & Education Services,B & Q,25/01/2016,43.00,Purchase Card Statement Summary,102500 - Building Construction Materials - Timber,
Solihull MBC,Children's Services - DSG Schools - Non DMT,Children & Education Services,B & Q,25/01/2016,49.00,Purchase Card Statement Summary,102500 - Building Construction Materials - Timber,
Solihull MBC,Communities & Adult Social Care,Adult Social Care,B & Q,25/01/2016,60.00,Purchase Card Statement Summary,102500 - Building Construction Materials - Timber,
Solihull MBC,Communities & Adult Social Care,Adult Social Care,B & Q,25/01/2016,93.57,Purchase Card Statement Summary,102500 - Building Construction Materials - Timber,
Solihull MBC,Children's Services - DSG Schools - Non DMT,Children & Education Services,B & Q,15/12/2015,-129.80,Building Maint Day To Day,102500 - Building Construction Materials - Timber,
Solihull MBC,Children's Services - DSG Schools - Non DMT,Children & Education Services,B & Q,07/12/2015,2.80,Building Maint Day To Day,102500 - Building Construction Materials - Timber,
Solihull MBC,Children's Services - DSG Schools - Non DMT,Children & Education Services,B & Q,29/12/2015,19.55,Building Maint Day To Day,102500 - Building Construction Materials - Timber,
Solihull MBC,Managed Growth,Cultural & Related Services,B & Q,04/12/2015,47.02,Furniture & Equipment,102500 - Building Construction Materials - Timber,
Solihull MBC,Communities & Adult Social Care,Adult Social Care,B & Q,15/12/2015,97.00,Furniture & Equipment,102500 - Building Construction Materials - Timber,
Solihull MBC,Children's Services - DSG Schools - Non DMT,Children & Education Services,B & Q,11/12/2015,265.95,Building Maint Day To Day,102500 - Building Construction Materials - Timber,
Solihull MBC,Communities & Adult Social Care,Adult Social Care,Beefeater40010640,25/01/2016,25.11,Purchase Card Statement Summary,261600 - Human Resources - Travel & Subsistence,
Solihull MBC,Communities & Adult Social Care,Adult Social Care,Berwick Care Equipment-V,25/01/2016,97.20,Purchase Card Statement Summary,311300 - Healthcare - Equipment,
Solihull MBC,Children's Services - DSG Schools - Non DMT,Children & Education Services,Bicester Travel Centre,04/12/2015,39.00,Capitation,261600 - Human Resources - Travel & Subsistence,
Solihull MBC,Children's Services - DSG Schools - Non DMT,Children & Education Services,Binding Bazaar,25/01/2016,181.80,Purchase Card Statement Summary,349999 - Stationery - Not Elsewhere Classified,
Solihull MBC,Communities & Adult Social Care,Adult Social Care,Birmingham Hippodrome,25/01/2016,19.38,Purchase Card Statement Summary,291300 - Arts & Leisure Services - Performing Arts,
Solihull MBC,Communities & Adult Social Care,Adult Social Care,Birmingham Hippodrome,25/01/2016,25.72,Purchase Card Statement Summary,291300 - Arts & Leisure Services - Performing Arts,
Solihull MBC,Communities & Adult Social Care,Adult Social Care,Birmingham Hippodrome,25/01/2016,25.72,Purchase Card Statement Summary,291300 - Arts & Leisure Services - Performing Arts,
Solihull MBC,Communities & Adult Social Care,Adult Social Care,Birmingham Hippodrome,25/01/2016,29.92,Purchase Card Statement Summary,291300 - Arts & Leisure Services - Performing Arts,
Solihull MBC,Communities & Adult Social Care,Adult Social Care,Birmingham Hippodrome,25/01/2016,34.66,Purchase Card Statement Summary,291300 - Arts & Leisure Services - Performing Arts,
Solihull MBC,Communities & Adult Social Care,Adult Social Care,Birmingham Hippodrome,25/01/2016,34.66,Purchase Card Statement Summary,291300 - Arts & Leisure Services - Performing Arts,
Solihull MBC,Communities & Adult Social Care,Adult Social Care,Birmingham Hippodrome,25/01/2016,34.66,Purchase Card Statement Summary,291300 - Arts & Leisure Services - Performing Arts,
Solihull MBC,Communities & Adult Social Care,Adult Social Care,Birmingham Hippodrome,25/01/2016,42.00,Purchase Card Statement Summary,291300 - Arts & Leisure Services - Performing Arts,
Solihull MBC,Communities & Adult Social Care,Adult Social Care,Birmingham Hippodrome,25/01/2016,42.00,Purchase Card Statement Summary,291300 - Arts & Leisure Services - Performing Arts,
Solihull MBC,Communities & Adult Social Care,Adult Social Care,Birmingham Hippodrome,25/01/2016,42.00,Purchase Card Statement Summary,291300 - Arts & Leisure Services - Performing Arts,
Solihull MBC,Children's Services - DSG Schools - Non DMT,Children & Education Services,Blinds 2 Go Ltd,03/12/2015,71.01,Building Maint Planned,211210 - Furniture & Soft Furnishings - Soft Furnishings,
Solihull MBC,Children's Services - DSG Schools - Non DMT,Children & Education Services,Blythe Mill Farm Suppl,25/01/2016,46.60,Purchase Card Statement Summary,169999 - Domestic Goods - Not Elsewhere Classified,
Solihull MBC,Communities & Adult Social Care,Adult Social Care,Boardsdirect.co.uk,25/01/2016,129.60,Purchase Card Statement Summary,341100 - Stationery - Sundries,
Solihull MBC,Children's Services - DSG Schools - Non DMT,Children & Education Services,Book Club Pay Service,04/12/2015,13.00,Capitation,171114 - Education - Literature,
Solihull MBC,Children's Services - DSG Schools - Non DMT,Children & Education Services,Book People Voucher,25/01/2016,60.00,Purchase Card Statement Summary,171114 - Education - Literature,
Solihull MBC,Children's Services - DSG Schools - Non DMT,Children & Education Services,Book People Voucher,25/01/2016,80.00,Purchase Card Statement Summary,171114 - Education - Literature,
Solihull MBC,Children's Services - DSG Schools - Non DMT,Children & Education Services,Bookdepository.com,09/12/2015,21.99,Capitation,171114 - Education - Literature,
Solihull MBC,Managed Growth,Highways & Transport Services,Brightkidz,25/01/2016,59.76,Purchase Card Statement Summary,169999 - Domestic Goods - Not Elsewhere Classified,
Solihull MBC,Children's Services & Skills,Children & Education Services,British Gas Tradin,25/01/2016,57.25,Purchase Card Statement Summary,161000 - Domestic Goods - Commercial,
Solihull MBC,Managed Growth,Environmental and Regulatory Services,Broad Oaks 205,25/01/2016,33.18,Purchase Card Statement Summary,381100 - Vehicle Management - Fuel,
Solihull MBC,Communities & Adult Social Care,Adult Social Care,Burger King,25/01/2016,3.58,Purchase Card Statement Summary,261600 - Human Resources - Travel & Subsistence,
Solihull MBC,Children's Services - DSG Schools - Non DMT,Children & Education Services,C.E.X Limited,16/12/2015,86.00,Capitation,101100 - Building Construction Materials - Electrical,
Solihull MBC,Children's Services & Skills,Children & Education Services,Card Factory,25/01/2016,1.98,Purchase Card Statement Summary,161000 - Domestic Goods - Commercial,
Solihull MBC,Children's Services & Skills,Children & Education Services,Card Factory,25/01/2016,15.08,Purchase Card Statement Summary,161000 - Domestic Goods - Commercial,
Solihull MBC,Children's Services - DSG Schools - Non DMT,Children & Education Services,Carrier Bag Shop,03/12/2015,34.10,Capitation,151000 - Consultancy - Business,
Solihull MBC,Children's Services & Skills,Children & Education Services,Carsington Sports & Le,11/12/2015,112.00,Other Fees,291400 - Arts & Leisure Services - Sport & Fitness,
Solihull MBC,Children's Services - DSG Schools - Non DMT,Children & Education Services,Cartridgesave.co.uk,25/01/2016,162.62,Purchase Card Statement Summary,341100 - Stationery - Sundries,
Solihull MBC,Children's Services - DSG Schools - Non DMT,Children & Education Services,Castle Nurseries,03/12/2015,30.00,Visits & Pupil Activities,241100 - Horticultural - Seeds & Plants,
Solihull MBC,Children's Services - DSG Schools - Non DMT,Children & Education Services,Central Eng Coop,25/01/2016,7.17,Purchase Card Statement Summary,169999 - Domestic Goods - Not Elsewhere Classified,
Solihull MBC,Children's Services & Skills,Children & Education Services,Central Eng Coop,03/12/2015,15.74,Catering Provisions,169999 - Domestic Goods - Not Elsewhere Classified,
Solihull MBC,Children's Services - DSG Schools - Non DMT,Children & Education Services,Centro,07/12/2015,10.00,Clients Transport Costs,209999 - Financial Services - Not Elsewhere Classified,
Solihull MBC,Managed Growth,Environmental and Regulatory Services,CIEH,25/01/2016,420.00,Purchase Card Statement Summary,201711 - Financial Services - Grants - Non-charitable,
Solihull MBC,Communities & Adult Social Care,Adult Social Care,Cineworld Sol Cp,25/01/2016,8.40,Purchase Card Statement Summary,291300 - Arts & Leisure Services - Performing Arts,
Solihull MBC,Communities & Adult Social Care,Adult Social Care,Cineworld Sol Cp,25/01/2016,8.40,Purchase Card Statement Summary,291300 - Arts & Leisure Services - Performing Arts,
Solihull MBC,Resources,Central Services to the Public,Clickatell Ltd,25/01/2016,16.32,Purchase Card Statement Summary,271699 - Information Communications Technology - Telecommunications,
Solihull MBC,Resources,Central Services to the Public,Clickatell Ltd,25/01/2016,16.32,Purchase Card Statement Summary,271699 - Information Communications Technology - Telecommunications,
Solihull MBC,Resources,Central Services to the Public,Clickatell Ltd,25/01/2016,16.32,Purchase Card Statement Summary,271699 - Information Communications Technology - Telecommunications,
Solihull MBC,Resources,Central Services to the Public,Comms Exp,25/01/2016,81.72,Purchase Card Statement Summary,169999 - Domestic Goods - Not Elsewhere Classified,
Solihull MBC,Resources,Central Services to the Public,Comms Exp,25/01/2016,136.32,Purchase Card Statement Summary,169999 - Domestic Goods - Not Elsewhere Classified,
Solihull MBC,Children's Services & Skills,Children & Education Services,Completesave.co.uk,25/01/2016,15.00,Purchase Card Statement Summary,161000 - Domestic Goods - Commercial,
Solihull MBC,Managed Growth - HRA,Housing Revenue Account,Contract Interior System,25/01/2016,1087.20,General Debtors,211100 - Furniture & Soft Furnishings - Domestic Furniture,
Solihull MBC,Children's Services - DSG Schools - Non DMT,Children & Education Services,Co-Op Group 070390,15/12/2015,9.42,Catering Provisions,111200 - Catering - Food & Beverages,
Solihull MBC,Children's Services - DSG Schools - Non DMT,Children & Education Services,Co-Op Group 070390,09/12/2015,10.05,Catering Provisions,111200 - Catering - Food & Beverages,
Solihull MBC,Resources,Central Services to the Public,CPC,25/01/2016,13.90,Purchase Card Statement Summary,101100 - Building Construction Materials - Electrical,
Solihull MBC,Managed Growth,Cultural & Related Services,CPC,25/01/2016,92.81,Purchase Card Statement Summary,101100 - Building Construction Materials - Electrical,
Solihull MBC,Communities & Adult Social Care,Adult Social Care,Craft Shed,25/01/2016,8.95,Purchase Card Statement Summary,171110 - Education - Arts & Crafts,
Solihull MBC,Children's Services - DSG Schools - Non DMT,Children & Education Services,Credit Adjustment,22/09/2015,-137.87,Purchase Card Statement Summary,171117 - Education - Toys,
Solihull MBC,Managed Growth,Cultural & Related Services,Currys,25/01/2016,13.98,Purchase Card Statement Summary,169999 - Domestic Goods - Not Elsewhere Classified,
Solihull MBC,Children's Services - DSG Schools - Non DMT,Children & Education Services,Currys,27/12/2015,41.66,Capitation,169999 - Domestic Goods - Not Elsewhere Classified,
Solihull MBC,Children's Services & Skills,Children & Education Services,Currys Online,25/01/2016,179.99,Purchase Card Statement Summary,169999 - Domestic Goods - Not Elsewhere Classified,
Solihull MBC,Public Health & Commissioning ,Adult Social Care,Currys Online,25/01/2016,250.00,Purchase Card Statement Summary,169999 - Domestic Goods - Not Elsewhere Classified,
Solihull MBC,Children's Services - DSG Schools - Non DMT,Children & Education Services,Decathlon UK Ltd,25/01/2016,448.74,Purchase Card Statement Summary,331300 - Sports & Playground Equipment & Maintenance - Sports Equipment,
Solihull MBC,Children's Services - DSG Schools - Non DMT,Children & Education Services,DHF Trading Ltd,25/01/2016,205.20,Purchase Card Statement Summary,161000 - Domestic Goods - Commercial,
Solihull MBC,Resources,Central Services to the Public,Digital Hearing Care S,25/01/2016,1686.00,Purchase Card Statement Summary,311300 - Healthcare - Equipment,
Solihull MBC,Children's Services - DSG Central.,Children & Education Services,Direct Furniture For U,25/01/2016,10.56,Purchase Card Statement Summary,211100 - Furniture & Soft Furnishings - Domestic Furniture,
Solihull MBC,Managed Growth,Cultural & Related Services,Displaysense Ltd,14/12/2015,284.60,Furniture & Equipment,301200 - Mail Services - Postage,
Solihull MBC,Children's Services - DSG Schools - Non DMT,Children & Education Services,Dudley Museum And,25/01/2016,152.00,Purchase Card Statement Summary,291400 - Arts & Leisure Services - Sport & Fitness,
Solihull MBC,Managed Growth,Cultural & Related Services,Earlswood Nurseries,25/01/2016,25.00,Purchase Card Statement Summary,249999 - Horticultural - Not Elsewhere Classified,
Solihull MBC,Managed Growth,Cultural & Related Services,Earlswood Nurseries,25/01/2016,25.00,Purchase Card Statement Summary,249999 - Horticultural - Not Elsewhere Classified,
Solihull MBC,Children's Services - DSG Schools - Non DMT,Children & Education Services,EB EVC Regional Confe,15/12/2015,75.00,Training,151000 - Consultancy - Business,
Solihull MBC,Children's Services - DSG Schools - Non DMT,Children & Education Services,Ee & T-Mobile,25/01/2016,167.67,Purchase Card Statement Summary,271699 - Information Communications Technology - Telecommunications,
Solihull MBC,Children's Services - DSG Schools - Non DMT,Children & Education Services,Ee & T-Mobile,08/12/2015,165.16,IT Equipment & Software,271699 - Information Communications Technology - Telecommunications,
Solihull MBC,Children's Services - DSG Schools - Non DMT,Children & Education Services,ELC-Internet,25/01/2016,72.00,Purchase Card Statement Summary,169999 - Domestic Goods - Not Elsewhere Classified,
Solihull MBC,Managed Growth,Other Housing Services,Electric Centre Ltd,25/01/2016,6.23,Purchase Card Statement Summary,169999 - Domestic Goods - Not Elsewhere Classified,
Solihull MBC,Managed Growth,Other Housing Services,Electric Centre Ltd,25/01/2016,21.98,Purchase Card Statement Summary,169999 - Domestic Goods - Not Elsewhere Classified,
Solihull MBC,Managed Growth,Other Housing Services,Electric Centre Ltd,25/01/2016,21.98,Purchase Card Statement Summary,169999 - Domestic Goods - Not Elsewhere Classified,
Solihull MBC,Managed Growth,Cultural & Related Services,Electric Centre Ltd,25/01/2016,78.66,Purchase Card Statement Summary,169999 - Domestic Goods - Not Elsewhere Classified,
Solihull MBC,Managed Growth - HRA,Housing Revenue Account,Endrick Trading Ltd,25/01/2016,117.58,General Debtors,151000 - Consultancy - Business,
Solihull MBC,Children's Services - DSG Schools - Non DMT,Children & Education Services,Express Kitts Ltd,14/12/2015,30.25,Clients Transport Costs,111200 - Catering - Food & Beverages,
Solihull MBC,Children's Services - DSG Schools - Non DMT,Children & Education Services,Farmfoods- Yardley,14/12/2015,41.92,Cleaning / Janitrl Materials,111200 - Catering - Food & Beverages,
Solihull MBC,Communities & Adult Social Care,Adult Social Care,Flair Door Centre,25/01/2016,18.00,Purchase Card Statement Summary,102100 - Building Construction Materials - Paint & Finishing,
Solihull MBC,Resources,Central Services to the Public,Freedom Of Speech,25/01/2016,106.80,Purchase Card Statement Summary,151000 - Consultancy - Business,
Solihull MBC,Managed Growth - HRA,Housing Revenue Account,Galleon CI Limited,25/01/2016,37.80,General Debtors,349999 - Stationery - Not Elsewhere Classified,
Solihull MBC,Children's Services - DSG Schools - Non DMT,Children & Education Services,Geeves Of Castle Bromw,25/01/2016,54.74,Purchase Card Statement Summary,131311 - Cleaning & Janitorial - Laundry Service,
Solihull MBC,Managed Growth,Environmental and Regulatory Services,Giant Marcoms,25/01/2016,46.79,Purchase Card Statement Summary,349999 - Stationery - Not Elsewhere Classified,
Solihull MBC,Children's Services & Skills,Children & Education Services,Greggs - S0513,25/01/2016,46.55,Purchase Card Statement Summary,111200 - Catering - Food & Beverages,
Solihull MBC,Communities & Adult Social Care,Adult Social Care,Greggs - S2064,25/01/2016,6.65,Purchase Card Statement Summary,111200 - Catering - Food & Beverages,
Solihull MBC,Communities & Adult Social Care,Adult Social Care,Greggs S2374,25/01/2016,7.20,Purchase Card Statement Summary,111200 - Catering - Food & Beverages,
Solihull MBC,Children's Services & Skills,Children & Education Services,GRO HM Passport Office,25/01/2016,-9.25,Purchase Card Statement Summary,209999 - Financial Services - Not Elsewhere Classified,
Solihull MBC,Children's Services & Skills,Children & Education Services,GRO HM Passport Office,25/01/2016,9.25,Purchase Card Statement Summary,209999 - Financial Services - Not Elsewhere Classified,
Solihull MBC,Children's Services & Skills,Children & Education Services,GRO HM Passport Office,25/01/2016,18.50,Purchase Card Statement Summary,209999 - Financial Services - Not Elsewhere Classified,
Solihull MBC,Children's Services & Skills,Children & Education Services,GRO HM Passport Office,25/01/2016,18.50,Purchase Card Statement Summary,209999 - Financial Services - Not Elsewhere Classified,
Solihull MBC,Children's Services & Skills,Children & Education Services,GRO HM Passport Office,25/01/2016,23.40,Purchase Card Statement Summary,209999 - Financial Services - Not Elsewhere Classified,
Solihull MBC,Managed Growth,Highways & Transport Services,H&M,25/01/2016,89.94,Purchase Card Statement Summary,141000 - Clothing - Children & Adults,
Solihull MBC,Managed Growth,Cultural & Related Services,Halfords 0553,06/12/2015,5.41,Furniture & Equipment,331300 - Sports & Playground Equipment & Maintenance - Sports Equipment,
Solihull MBC,Managed Growth,Cultural & Related Services,Halfords 0857,25/01/2016,17.00,Purchase Card Statement Summary,331300 - Sports & Playground Equipment & Maintenance - Sports Equipment,
Solihull MBC,Communities & Adult Social Care,Adult Social Care,Hare & Hounds,25/01/2016,8.74,Purchase Card Statement Summary,261600 - Human Resources - Travel & Subsistence,
Solihull MBC,Communities & Adult Social Care,Adult Social Care,Hare & Hounds,25/01/2016,18.72,Purchase Card Statement Summary,261600 - Human Resources - Travel & Subsistence,
Solihull MBC,Communities & Adult Social Care,Adult Social Care,Hare & Hounds,25/01/2016,18.89,Purchase Card Statement Summary,261600 - Human Resources - Travel & Subsistence,
Solihull MBC,Communities & Adult Social Care,Adult Social Care,Hillfield Farm,25/01/2016,12.96,Purchase Card Statement Summary,261600 - Human Resources - Travel & Subsistence,
Solihull MBC,Communities & Adult Social Care,Adult Social Care,Hillfield Farm,25/01/2016,13.28,Purchase Card Statement Summary,261600 - Human Resources - Travel & Subsistence,
Solihull MBC,Communities & Adult Social Care,Adult Social Care,HMCourts-Service.G,25/01/2016,20.00,Purchase Card Statement Summary,209999 - Financial Services - Not Elsewhere Classified,
Solihull MBC,Resources,Central Services to the Public,HMCourts-Service.G,25/01/2016,33.00,Purchase Card Statement Summary,209999 - Financial Services - Not Elsewhere Classified,
Solihull MBC,Resources,Central Services to the Public,HMCourts-Service.G,25/01/2016,96.00,Purchase Card Statement Summary,209999 - Financial Services - Not Elsewhere Classified,
Solihull MBC,Resources,Central Services to the Public,HMCourts-Service.G,25/01/2016,513.00,Purchase Card Statement Summary,209999 - Financial Services - Not Elsewhere Classified,
Solihull MBC,Resources,Central Services to the Public,HMCourts-Service.G,25/01/2016,912.00,Purchase Card Statement Summary,209999 - Financial Services - Not Elsewhere Classified,
Solihull MBC,Children's Services - DSG Schools - Non DMT,Children & Education Services,Hobbycraft Group L,25/01/2016,5.00,Purchase Card Statement Summary,171110 - Education - Arts & Crafts,
Solihull MBC,Communities & Adult Social Care,Adult Social Care,Hollywood Meats Ltd,14/12/2015,46.00,Catering Provisions,111200 - Catering - Food & Beverages,
Solihull MBC,Children's Services & Skills,Children & Education Services,Home Bargains Chelmsle,25/01/2016,18.22,Purchase Card Statement Summary,101400 - Building Construction Materials - General Materials,
Solihull MBC,Children's Services - DSG Schools - Non DMT,Children & Education Services,Home Bargains Chelmsle,25/01/2016,61.86,Purchase Card Statement Summary,101400 - Building Construction Materials - General Materials,
Solihull MBC,Children's Services - DSG Schools - Non DMT,Children & Education Services,Homebase Ltd 494,10/12/2015,44.18,Building Maint Planned,102500 - Building Construction Materials - Timber,
Solihull MBC,Resources,Central Services to the Public,HP Inc UK Limited,25/01/2016,228.56,Purchase Card Statement Summary,271200 - Information Communications Technology - Hardware,
Solihull MBC,Resources,Central Services to the Public,Hypertec Ltd,25/01/2016,49.68,Purchase Card Statement Summary,271600 - Information Communication Technology - Software - Customised & Bespoke,
Solihull MBC,Children's Services - DSG Central.,Children & Education Services,Iceland,25/01/2016,9.00,Purchase Card Statement Summary,111200 - Catering - Food & Beverages,
Solihull MBC,Children's Services - DSG Schools - Non DMT,Children & Education Services,Iceland,25/01/2016,56.85,Purchase Card Statement Summary,111200 - Catering - Food & Beverages,
Solihull MBC,Communities & Adult Social Care,Adult Social Care,Iceland,25/01/2016,65.99,Purchase Card Statement Summary,111200 - Catering - Food & Beverages,
Solihull MBC,Communities & Adult Social Care,Adult Social Care,Iceland,25/01/2016,66.29,Purchase Card Statement Summary,111200 - Catering - Food & Beverages,
Solihull MBC,Communities & Adult Social Care,Adult Social Care,Iceland,25/01/2016,116.03,Purchase Card Statement Summary,111200 - Catering - Food & Beverages,
Solihull MBC,Communities & Adult Social Care,Adult Social Care,Iceland,25/01/2016,147.40,Purchase Card Statement Summary,111200 - Catering - Food & Beverages,
Solihull MBC,Communities & Adult Social Care,Adult Social Care,Iceland,08/12/2015,40.26,Purchase Card Statement Summary,111200 - Catering - Food & Beverages,
Solihull MBC,Managed Growth,Cultural & Related Services,Ikea,25/01/2016,32.95,Purchase Card Statement Summary,211210 - Furniture & Soft Furnishings - Soft Furnishings,
Solihull MBC,Children's Services & Skills,Children & Education Services,IPS Peterborough Conta,25/01/2016,46.00,Purchase Card Statement Summary,209999 - Financial Services - Not Elsewhere Classified,
Solihull MBC,Children's Services - DSG Schools - Non DMT,Children & Education Services,Itunes.com Bill,20/12/2015,3.32,Consumables,171111 - Education - Audio Visual,
Solihull MBC,Children's Services - DSG Schools - Non DMT,Children & Education Services,Itunes.com/Bill,25/01/2016,0.01,Purchase Card Statement Summary,171111 - Education - Audio Visual,
Solihull MBC,Children's Services - DSG Schools - Non DMT,Children & Education Services,Itunes.com/Bill,25/01/2016,7.73,Purchase Card Statement Summary,171111 - Education - Audio Visual,
Solihull MBC,Children's Services - DSG Schools - Non DMT,Children & Education Services,Itunes.com/Bill,25/01/2016,9.75,Purchase Card Statement Summary,171111 - Education - Audio Visual,
Solihull MBC,Children's Services - DSG Schools - Non DMT,Children & Education Services,Itunes.com/Bill,25/01/2016,10.39,Purchase Card Statement Summary,171111 - Education - Audio Visual,
Solihull MBC,Children's Services - DSG Schools - Non DMT,Children & Education Services,Itunes.com/Bill,25/01/2016,18.50,Purchase Card Statement Summary,171111 - Education - Audio Visual,
Solihull MBC,Resources,Central Services to the Public,John Lewis,25/01/2016,1356.05,Purchase Card Statement Summary,169999 - Domestic Goods - Not Elsewhere Classified,
Solihull MBC,Managed Growth,Other Housing Services,Johnstones Dec Centre,25/01/2016,2.75,Purchase Card Statement Summary,102100 - Building Construction Materials - Paint & Finishing,
Solihull MBC,Managed Growth,Other Housing Services,Johnstones Dec Centre,25/01/2016,50.66,Purchase Card Statement Summary,102100 - Building Construction Materials - Paint & Finishing,
Solihull MBC,Children's Services - DSG Schools - Non DMT,Children & Education Services,JS Online Grocery,25/01/2016,-1.00,Purchase Card Statement Summary,111200 - Catering - Food & Beverages,
Solihull MBC,Children's Services - DSG Schools - Non DMT,Children & Education Services,JS Online Grocery,25/01/2016,41.40,Purchase Card Statement Summary,111200 - Catering - Food & Beverages,
Solihull MBC,Communities & Adult Social Care,Adult Social Care,JS Online Grocery,25/01/2016,45.20,Purchase Card Statement Summary,111200 - Catering - Food & Beverages,
Solihull MBC,Children's Services - DSG Schools - Non DMT,Children & Education Services,JS Online Grocery,25/01/2016,146.30,Purchase Card Statement Summary,111200 - Catering - Food & Beverages,
Solihull MBC,Children's Services - DSG Schools - Non DMT,Children & Education Services,JS Online Grocery,25/01/2016,164.85,Purchase Card Statement Summary,111200 - Catering - Food & Beverages,
Solihull MBC,Children's Services - DSG Schools - Non DMT,Children & Education Services,JS Online Grocery,25/01/2016,166.07,Purchase Card Statement Summary,111200 - Catering - Food & Beverages,
Solihull MBC,Children's Services - DSG Schools - Non DMT,Children & Education Services,JS Online Grocery,25/01/2016,175.30,Purchase Card Statement Summary,111200 - Catering - Food & Beverages,
Solihull MBC,Children's Services - DSG Schools - Non DMT,Children & Education Services,JS Online Grocery,25/01/2016,223.45,Purchase Card Statement Summary,111200 - Catering - Food & Beverages,
Solihull MBC,Children's Services - DSG Schools - Non DMT,Children & Education Services,JS Online Grocery,18/12/2015,12.29,Catering Provisions,111200 - Catering - Food & Beverages,
Solihull MBC,Children's Services - DSG Schools - Non DMT,Children & Education Services,JS Online Grocery,07/12/2015,12.92,Catering Provisions,111200 - Catering - Food & Beverages,
Solihull MBC,Children's Services - DSG Schools - Non DMT,Children & Education Services,JS Online Grocery,14/12/2015,13.42,Catering Provisions,111200 - Catering - Food & Beverages,
Solihull MBC,Children's Services - DSG Schools - Non DMT,Children & Education Services,JS Online Grocery,09/12/2015,13.67,Capitation,111200 - Catering - Food & Beverages,
Solihull MBC,Children's Services - DSG Schools - Non DMT,Children & Education Services,JS Online Grocery,07/12/2015,17.00,Capitation,111200 - Catering - Food & Beverages,
Solihull MBC,Children's Services - DSG Schools - Non DMT,Children & Education Services,JS Online Grocery,14/12/2015,21.33,Capitation,111200 - Catering - Food & Beverages,
Solihull MBC,Children's Services - DSG Schools - Non DMT,Children & Education Services,JS Online Grocery,10/12/2015,75.20,Materials For Resale,111200 - Catering - Food & Beverages,
Solihull MBC,Children's Services - DSG Schools - Non DMT,Children & Education Services,JS Online Grocery,14/12/2015,83.93,Capitation,111200 - Catering - Food & Beverages,
Solihull MBC,Children's Services - DSG Schools - Non DMT,Children & Education Services,JS Online Grocery,07/12/2015,89.71,Catering Provisions,111200 - Catering - Food & Beverages,
Solihull MBC,Children's Services - DSG Schools - Non DMT,Children & Education Services,JS Online Grocery,18/12/2015,93.23,Catering Provisions,111200 - Catering - Food & Beverages,
Solihull MBC,Children's Services - DSG Schools - Non DMT,Children & Education Services,JS Online Grocery,09/12/2015,106.03,Capitation,111200 - Catering - Food & Beverages,
Solihull MBC,Children's Services - DSG Schools - Non DMT,Children & Education Services,JS Online Grocery,14/12/2015,117.32,Catering Provisions,111200 - Catering - Food & Beverages,
Solihull MBC,Children's Services - DSG Schools - Non DMT,Children & Education Services,JS Online Grocery,15/12/2015,120.30,Capitation,111200 - Catering - Food & Beverages,
Solihull MBC,Children's Services - DSG Schools - Non DMT,Children & Education Services,JS Online Grocery,07/12/2015,123.68,Catering Provisions,111200 - Catering - Food & Beverages,
Solihull MBC,Children's Services - DSG Schools - Non DMT,Children & Education Services,JS Online Grocery,14/12/2015,143.61,Catering Provisions,111200 - Catering - Food & Beverages,
Solihull MBC,Children's Services - DSG Schools - Non DMT,Children & Education Services,JS Online Grocery,07/12/2015,190.18,Capitation,111200 - Catering - Food & Beverages,
Solihull MBC,Children's Services - DSG Schools - Non DMT,Children & Education Services,Justasoap.co.uk,25/01/2016,12.10,Purchase Card Statement Summary,169999 - Domestic Goods - Not Elsewhere Classified,
Solihull MBC,Communities & Adult Social Care,Adult Social Care,Justice Security S,25/01/2016,102.00,Purchase Card Statement Summary,101100 - Building Construction Materials - Electrical,
Solihull MBC,Children's Services - DSG Schools - Non DMT,Children & Education Services,Kiely Bros Ltd,25/01/2016,182.00,Purchase Card Statement Summary,161000 - Domestic Goods - Commercial,
Solihull MBC,Children's Services & Skills,Children & Education Services,Kingsbury Carpets Ltd,25/01/2016,200.00,Purchase Card Statement Summary,101300 - Building Construction Materials - Floor Coverings,
Solihull MBC,Communities & Adult Social Care,Adult Social Care,KLM UK,16/12/2015,8.19,Training,369999 - Public Transport - Not Elsewhere Classified,
Solihull MBC,Communities & Adult Social Care,Adult Social Care,KLM UK      0742498421720,16/12/2015,128.04,Training,369999 - Public Transport - Not Elsewhere Classified,
Solihull MBC,Managed Growth,Environmental and Regulatory Services,Krowmark,25/01/2016,229.14,Purchase Card Statement Summary,111100 - Catering - Equipment & Utensils,
Solihull MBC,Managed Growth,Cultural & Related Services,Lakeland Limited,25/01/2016,95.72,Purchase Card Statement Summary,169999 - Domestic Goods - Not Elsewhere Classified,
Solihull MBC,Managed Growth,Cultural & Related Services,Lakeland.Limited,25/01/2016,137.50,Purchase Card Statement Summary,169999 - Domestic Goods - Not Elsewhere Classified,
Solihull MBC,Children's Services - DSG Schools - Non DMT,Children & Education Services,Lampspecs.co.uk,08/12/2015,23.70,Building Maint Day To Day,161000 - Domestic Goods - Commercial,
Solihull MBC,Children's Services & Skills,Children & Education Services,Lea Marston Hotel,16/12/2015,150.00,Other Fees,261000 - Human Resources - Accommodation,
Solihull MBC,Managed Growth - HRA,Housing Revenue Account,Lighthouse,25/01/2016,342.60,General Debtors,349999 - Stationery - Not Elsewhere Classified,
Solihull MBC,Resources,Central Services to the Public,London Midland Sel,25/01/2016,5.50,Purchase Card Statement Summary,261600 - Human Resources - Travel & Subsistence,
Solihull MBC,Resources,Central Services to the Public,London Midland Tic,25/01/2016,4.20,Purchase Card Statement Summary,261600 - Human Resources - Travel & Subsistence,
Solihull MBC,Public Health & Commissioning ,Adult Social Care,Love2Shop.co.uk,25/01/2016,203.50,Purchase Card Statement Summary,201711 - Financial Services - Grants - Non-charitable,
Solihull MBC,Children's Services & Skills,Children & Education Services,Lucy Cards,25/01/2016,9.14,Purchase Card Statement Summary,161000 - Domestic Goods - Commercial,
Solihull MBC,Managed Growth,Other Housing Services,M&J Mahoney & Sons Ltd,25/01/2016,6.00,Purchase Card Statement Summary,102500 - Building Construction Materials - Timber,
Solihull MBC,Managed Growth,Other Housing Services,M&J Mahoney & Sons Ltd,25/01/2016,12.89,Purchase Card Statement Summary,102500 - Building Construction Materials - Timber,
Solihull MBC,Managed Growth,Other Housing Services,M&J Mahoney & Sons Ltd,25/01/2016,14.61,Purchase Card Statement Summary,102500 - Building Construction Materials - Timber,
Solihull MBC,Managed Growth,Other Housing Services,M&J Mahoney & Sons Ltd,25/01/2016,19.70,Purchase Card Statement Summary,102500 - Building Construction Materials - Timber,
Solihull MBC,Managed Growth,Other Housing Services,M&J Mahoney & Sons Ltd,25/01/2016,25.27,Purchase Card Statement Summary,102500 - Building Construction Materials - Timber,
Solihull MBC,Managed Growth,Other Housing Services,M&J Mahoney & Sons Ltd,25/01/2016,74.52,Purchase Card Statement Summary,102500 - Building Construction Materials - Timber,
Solihull MBC,Managed Growth,Other Housing Services,M&J Mahoney & Sons Ltd,25/01/2016,85.11,Purchase Card Statement Summary,102500 - Building Construction Materials - Timber,
Solihull MBC,Children's Services - DSG Schools - Non DMT,Children & Education Services,M&S E Commerce,25/01/2016,249.50,Purchase Card Statement Summary,111200 - Catering - Food & Beverages,
Solihull MBC,Managed Growth,Environmental and Regulatory Services,M6 Toll,25/01/2016,5.50,Purchase Card Statement Summary,261600 - Human Resources - Travel & Subsistence,
Solihull MBC,Managed Growth,Environmental and Regulatory Services,M6 Toll,25/01/2016,5.50,Purchase Card Statement Summary,261600 - Human Resources - Travel & Subsistence,
Solihull MBC,Children's Services - DSG Schools - Non DMT,Children & Education Services,Makro Self Service Haleso,12/12/2015,64.81,Capitation,169999 - Domestic Goods - Not Elsewhere Classified,
Solihull MBC,Children's Services - DSG Schools - Non DMT,Children & Education Services,Maplin Solihull B91,25/01/2016,17.99,Purchase Card Statement Summary,169999 - Domestic Goods - Not Elsewhere Classified,
Solihull MBC,Managed Growth,Highways & Transport Services,Maplin Solihull B91,25/01/2016,19.99,Purchase Card Statement Summary,169999 - Domestic Goods - Not Elsewhere Classified,
Solihull MBC,Children's Services - DSG Schools - Non DMT,Children & Education Services,Maplin Solihull B91,25/01/2016,27.98,Purchase Card Statement Summary,169999 - Domestic Goods - Not Elsewhere Classified,
Solihull MBC,Managed Growth,Highways & Transport Services,Maplin Solihull B91,25/01/2016,34.03,Purchase Card Statement Summary,169999 - Domestic Goods - Not Elsewhere Classified,
Solihull MBC,Children's Services & Skills,Children & Education Services,Maplin Wolverhampt WV1,12/12/2015,8.32,Furniture & Equipment,169999 - Domestic Goods - Not Elsewhere Classified,
Solihull MBC,Children's Services - DSG Schools - Non DMT,Children & Education Services,Marks & Spencer,25/01/2016,15.89,Purchase Card Statement Summary,111200 - Catering - Food & Beverages,
Solihull MBC,Communities & Adult Social Care,Adult Social Care,McDonalds,25/01/2016,12.47,Purchase Card Statement Summary,261600 - Human Resources - Travel & Subsistence,
Solihull MBC,Children's Services & Skills,Children & Education Services,McDonalds,25/01/2016,19.32,Purchase Card Statement Summary,261600 - Human Resources - Travel & Subsistence,
Solihull MBC,Communities & Adult Social Care,Adult Social Care,Melbicks Garden,25/01/2016,10.90,Purchase Card Statement Summary,249999 - Horticultural - Not Elsewhere Classified,
Solihull MBC,Communities & Adult Social Care,Adult Social Care,Melbicks Garden,25/01/2016,12.45,Purchase Card Statement Summary,249999 - Horticultural - Not Elsewhere Classified,
Solihull MBC,Communities & Adult Social Care,Adult Social Care,Melbicks Garden,25/01/2016,13.50,Purchase Card Statement Summary,249999 - Horticultural - Not Elsewhere Classified,
Solihull MBC,Communities & Adult Social Care,Adult Social Care,Melbicks Garden,25/01/2016,14.85,Purchase Card Statement Summary,249999 - Horticultural - Not Elsewhere Classified,
Solihull MBC,Managed Growth - HRA,Housing Revenue Account,Melbicks Garden,25/01/2016,278.74,General Debtors,249999 - Horticultural - Not Elsewhere Classified,
Solihull MBC,Children's Services - DSG Schools - Non DMT,Children & Education Services,Melbicks Garden,03/12/2015,3.08,Professional Fees,249999 - Horticultural - Not Elsewhere Classified,
Solihull MBC,Managed Growth,Environmental and Regulatory Services,Midhire Self Drive Renta,25/01/2016,21.60,Purchase Card Statement Summary,381210 - Vehicle Management - Hire,
Solihull MBC,Communities & Adult Social Care,Adult Social Care,Midland Business,25/01/2016,4.35,Purchase Card Statement Summary,341100 - Stationery - Sundries,
Solihull MBC,Children's Services - DSG Schools - Non DMT,Children & Education Services,Mindsets UK Limited,14/12/2015,42.35,Capitation,171011 - Education - School Services,
Solihull MBC,Children's Services & Skills,Children & Education Services,Miss Lillys,25/01/2016,35.00,Purchase Card Statement Summary,249999 - Horticultural - Not Elsewhere Classified,
Solihull MBC,Resources,Central Services to the Public,Mr Memory,25/01/2016,26.76,Purchase Card Statement Summary,169999 - Domestic Goods - Not Elsewhere Classified,
Solihull MBC,Resources,Central Services to the Public,Mr Memory,25/01/2016,49.92,Purchase Card Statement Summary,169999 - Domestic Goods - Not Elsewhere Classified,
Solihull MBC,Resources,Central Services to the Public,Mr Memory,25/01/2016,259.44,Purchase Card Statement Summary,169999 - Domestic Goods - Not Elsewhere Classified,
Solihull MBC,Resources,Central Services to the Public,Mr Memory,25/01/2016,279.84,Purchase Card Statement Summary,169999 - Domestic Goods - Not Elsewhere Classified,
Solihull MBC,Managed Growth,Cultural & Related Services,Mylands,07/12/2015,127.80,Furniture & Equipment,169999 - Domestic Goods - Not Elsewhere Classified,
Solihull MBC,Children's Services - DSG Schools - Non DMT,Children & Education Services,NDNA,25/01/2016,63.00,Purchase Card Statement Summary,201710 - Financial Services - Grants - Charitable,
Solihull MBC,Children's Services - DSG Schools - Non DMT,Children & Education Services,NDNA,25/01/2016,77.00,Purchase Card Statement Summary,201710 - Financial Services - Grants - Charitable,
Solihull MBC,Children's Services & Skills,Children & Education Services,NDNA,25/01/2016,176.00,Purchase Card Statement Summary,201710 - Financial Services - Grants - Charitable,
Solihull MBC,Children's Services - DSG Schools - Non DMT,Children & Education Services,NDNA,10/12/2015,66.00,Training,201710 - Financial Services - Grants - Charitable,
Solihull MBC,Children's Services - DSG Schools - Non DMT,Children & Education Services,Normans,11/12/2015,54.63,Capitation,291110 - Arts & Leisure Services - Professional Musical Instruments,
Solihull MBC,Children's Services & Skills,Children & Education Services,North Solihull Leisure Ce,14/12/2015,5.37,Purchase Card Statement Summary,291400 - Arts & Leisure Services - Sport & Fitness,
Solihull MBC,Children's Services & Skills,Children & Education Services,North Solihull Leisure Ce,09/12/2015,6.21,Other Fees,291400 - Arts & Leisure Services - Sport & Fitness,
Solihull MBC,Communities & Adult Social Care,Adult Social Care,Notcutts Garden,25/01/2016,8.40,Purchase Card Statement Summary,249999 - Horticultural - Not Elsewhere Classified,
Solihull MBC,Children's Services - DSG Schools - Non DMT,Children & Education Services,Notcutts Garden Ce,24/12/2015,22.21,Furniture & Equipment,249999 - Horticultural - Not Elsewhere Classified,
Solihull MBC,Children's Services - DSG Schools - Non DMT,Children & Education Services,Notcutts Garden Ce,04/12/2015,49.98,Visits & Pupil Activities,249999 - Horticultural - Not Elsewhere Classified,
Solihull MBC,Children's Services - DSG Schools - Non DMT,Children & Education Services,O2 UK CCA Payment,14/12/2015,19.38,IT Equipment & Software,271699 - Information Communications Technology - Telecommunications,
Solihull MBC,Children's Services - DSG Schools - Non DMT,Children & Education Services,O2 UK Payment,14/12/2015,19.38,IT Equipment & Software,271699 - Information Communications Technology - Telecommunications,
Solihull MBC,Communities & Adult Social Care,Adult Social Care,O'Neill's,25/01/2016,17.38,Purchase Card Statement Summary,261600 - Human Resources - Travel & Subsistence,
Solihull MBC,Managed Growth,Cultural & Related Services,Onevisionimaging.com,25/01/2016,51.55,Purchase Card Statement Summary,192000 - Facilities & Management Services - Reprographics,
Solihull MBC,Resources,Central Services to the Public,Online Ergonomics,25/01/2016,79.80,Purchase Card Statement Summary,211000 - Furniture & Soft Furnishings - Commercial Furniture,
Solihull MBC,Children's Services - DSG Schools - Non DMT,Children & Education Services,Online Schools Ltd,25/01/2016,99.00,Purchase Card Statement Summary,271430 - Information Communication Technology - Software - Commercial Off-The-Shelf,
Solihull MBC,Resources,Central Services to the Public,Park Plaza Leeds,25/01/2016,-6.65,Purchase Card Statement Summary,261000 - Human Resources - Accommodation,
Solihull MBC,Resources,Central Services to the Public,Park Plaza Leeds,25/01/2016,134.00,Purchase Card Statement Summary,261000 - Human Resources - Accommodation,
Solihull MBC,Communities & Adult Social Care,Adult Social Care,Parkdean Holiday P,25/01/2016,50.75,Purchase Card Statement Summary,291120 - Arts & Leisure Services - Organised Activities,
Solihull MBC,Children's Services - DSG Schools - Non DMT,Children & Education Services,Paypal *Achogan,11/12/2015,36.00,Capitation,171110 - Education - Arts & Crafts,
Solihull MBC,Children's Services - DSG Schools - Non DMT,Children & Education Services,Paypal *Battdepot,25/01/2016,60.94,Purchase Card Statement Summary,169999 - Domestic Goods - Not Elsewhere Classified,
Solihull MBC,Children's Services - DSG Schools - Non DMT,Children & Education Services,Paypal *BTR UK,17/12/2015,114.95,IT Equipment & Software,169999 - Domestic Goods - Not Elsewhere Classified,
Solihull MBC,Resources,Central Services to the Public,Paypal *Camtechsyst,25/01/2016,54.00,Purchase Card Statement Summary,271600 - Information Communication Technology - Software - Customised & Bespoke,
Solihull MBC,Business Change,Central Services to the Public,Paypal *Complete Ca,25/01/2016,25.43,Purchase Card Statement Summary,169999 - Domestic Goods - Not Elsewhere Classified,
Solihull MBC,Managed Growth,Cultural & Related Services,Paypal *GobolandUKl,25/01/2016,24.60,Purchase Card Statement Summary,161100 - Domestic Goods - Industrial,
Solihull MBC,Children's Services - DSG Schools - Non DMT,Children & Education Services,Paypal *Godaddy.com,04/12/2015,3.99,IT Equipment & Software,279999 - Information Communications Technology - Not Elsewhere Classified,
Solihull MBC,Public Health & Commissioning ,Adult Social Care,Paypal *Hpphn,25/01/2016,30.00,Purchase Card Statement Summary,171011 - Education - School Services,
Solihull MBC,Business Change,Central Services to the Public,Paypal *Medpageltdt,25/01/2016,86.24,Purchase Card Statement Summary,311300 - Healthcare - Equipment,
Solihull MBC,Children's Services - DSG Schools - Non DMT,Children & Education Services,Paypal *Netwrk4Good,25/01/2016,53.41,Purchase Card Statement Summary,201710 - Financial Services - Grants - Charitable,
Solihull MBC,Resources,Central Services to the Public,Paypal *Order,25/01/2016,26.78,Purchase Card Statement Summary,169999 - Domestic Goods - Not Elsewhere Classified,
Solihull MBC,Children's Services - DSG Schools - Non DMT,Children & Education Services,Paypal *Phonicsplay,09/12/2015,100.00,Capitation,171040 - Education - Educational Placements,
Solihull MBC,Children's Services - DSG Schools - Non DMT,Children & Education Services,Paypal *Planbeereso,09/12/2015,14.50,Capitation,171040 - Education - Educational Placements,
Solihull MBC,Children's Services - DSG Schools - Non DMT,Children & Education Services,Paypal *Planbeereso,16/12/2015,43.50,Capitation,171040 - Education - Educational Placements,
Solihull MBC,Children's Services - DSG Schools - Non DMT,Children & Education Services,Paypal *Planbeereso,07/12/2015,113.00,Capitation,171040 - Education - Educational Placements,
Solihull MBC,Children's Services - DSG Schools - Non DMT,Children & Education Services,Paypal *Thirstycups,25/01/2016,140.58,Purchase Card Statement Summary,209999 - Financial Services - Not Elsewhere Classified,
Solihull MBC,Children's Services - DSG Schools - Non DMT,Children & Education Services,Paypal *Tooltime,25/01/2016,8.79,Purchase Card Statement Summary,241000 - Horticultural - Chemicals,
Solihull MBC,Children's Services - DSG Schools - Non DMT,Children & Education Services,Paypal *Wordery,25/01/2016,-6.65,Purchase Card Statement Summary,171114 - Education - Literature,
Solihull MBC,Children's Services - DSG Schools - Non DMT,Children & Education Services,Paypal *Wordery,25/01/2016,6.65,Purchase Card Statement Summary,171114 - Education - Literature,
Solihull MBC,Children's Services - DSG Schools - Non DMT,Children & Education Services,Performances Birmingha,18/12/2015,83.00,Visits & Pupil Activities,291300 - Arts & Leisure Services - Performing Arts,
Solihull MBC,Children's Services - DSG Schools - Non DMT,Children & Education Services,Pizza Hut (464),11/12/2015,112.00,Capitation,261600 - Human Resources - Travel & Subsistence,
Solihull MBC,Resources,Central Services to the Public,Pluralsight,25/01/2016,1360.12,Purchase Card Statement Summary,171011 - Education - School Services,
Solihull MBC,Managed Growth - HRA,Housing Revenue Account,Polyfast.co.uk,25/01/2016,65.94,General Debtors,141000 - Clothing - Children & Adults,
Solihull MBC,Communities & Adult Social Care,Adult Social Care,Poolway Cash And Carry,25/01/2016,53.00,Purchase Card Statement Summary,169999 - Domestic Goods - Not Elsewhere Classified,
Solihull MBC,Children's Services & Skills,Children & Education Services,Post Office Counter,25/01/2016,2.42,Purchase Card Statement Summary,301200 - Mail Services - Postage,
Solihull MBC,Children's Services - DSG Schools - Non DMT,Children & Education Services,Post Office Counter,25/01/2016,3.90,Purchase Card Statement Summary,301200 - Mail Services - Postage,
Solihull MBC,Children's Services - DSG Central.,Children & Education Services,Post Office Counter,25/01/2016,7.56,Purchase Card Statement Summary,301200 - Mail Services - Postage,
Solihull MBC,Communities & Adult Social Care,Adult Social Care,Post Office Counter,25/01/2016,14.04,Purchase Card Statement Summary,301200 - Mail Services - Postage,
Solihull MBC,Communities & Adult Social Care,Adult Social Care,Post Office Counter,25/01/2016,15.57,Purchase Card Statement Summary,301200 - Mail Services - Postage,
Solihull MBC,Children's Services & Skills,Children & Education Services,Post Office Counter,25/01/2016,55.75,Purchase Card Statement Summary,301200 - Mail Services - Postage,
Solihull MBC,Children's Services & Skills,Children & Education Services,Post Office Counter,25/01/2016,55.75,Purchase Card Statement Summary,301200 - Mail Services - Postage,
Solihull MBC,Children's Services & Skills,Children & Education Services,Post Office Counter,25/01/2016,82.25,Purchase Card Statement Summary,301200 - Mail Services - Postage,
Solihull MBC,Children's Services & Skills,Children & Education Services,Post Office Counter,25/01/2016,540.00,Purchase Card Statement Summary,301200 - Mail Services - Postage,
Solihull MBC,Children's Services - DSG Schools - Non DMT,Children & Education Services,Post Office Counter,05/12/2015,2.78,Postage & Courier Services,301200 - Mail Services - Postage,
Solihull MBC,Children's Services - DSG Schools - Non DMT,Children & Education Services,Post Office Counter,19/12/2015,60.48,Postage & Courier Services,301200 - Mail Services - Postage,
Solihull MBC,Children's Services - DSG Schools - Non DMT,Children & Education Services,Poundland,25/01/2016,6.00,Purchase Card Statement Summary,169999 - Domestic Goods - Not Elsewhere Classified,
Solihull MBC,Children's Services - DSG Schools - Non DMT,Children & Education Services,Poundland,25/01/2016,14.10,Purchase Card Statement Summary,169999 - Domestic Goods - Not Elsewhere Classified,
Solihull MBC,Children's Services - DSG Schools - Non DMT,Children & Education Services,Poundland,04/12/2015,16.67,Capitation,169999 - Domestic Goods - Not Elsewhere Classified,
Solihull MBC,Children's Services - DSG Schools - Non DMT,Children & Education Services,Poundland Ltd,03/12/2015,14.10,Capitation,169999 - Domestic Goods - Not Elsewhere Classified,
Solihull MBC,Children's Services - DSG Schools - Non DMT,Children & Education Services,Poundland Ltd 1080,10/12/2015,11.10,Capitation,169999 - Domestic Goods - Not Elsewhere Classified,
Solihull MBC,Children's Services & Skills,Children & Education Services,Poundland Ltd 1174,25/01/2016,5.00,Purchase Card Statement Summary,169999 - Domestic Goods - Not Elsewhere Classified,
Solihull MBC,Children's Services - DSG Schools - Non DMT,Children & Education Services,Poundland Ltd 1174,25/01/2016,66.85,Purchase Card Statement Summary,169999 - Domestic Goods - Not Elsewhere Classified,
Solihull MBC,Children's Services - DSG Schools - Non DMT,Children & Education Services,Poundland Ltd 1224,12/12/2015,3.33,Capitation,169999 - Domestic Goods - Not Elsewhere Classified,
Solihull MBC,Children's Services & Skills,Children & Education Services,Poundland Ltd 1470,17/12/2015,3.33,Furniture & Equipment,169999 - Domestic Goods - Not Elsewhere Classified,
Solihull MBC,Communities & Adult Social Care,Adult Social Care,Poundstretcher 655,25/01/2016,20.00,Purchase Card Statement Summary,211210 - Furniture & Soft Furnishings - Soft Furnishings,
Solihull MBC,Children's Services - DSG Schools - Non DMT,Children & Education Services,Poundworld Retail,12/12/2015,25.00,Capitation,169999 - Domestic Goods - Not Elsewhere Classified,
Solihull MBC,Children's Services - DSG Schools - Non DMT,Children & Education Services,Pre-School Learning Al,25/01/2016,300.00,Purchase Card Statement Summary,171011 - Education - School Services,
Solihull MBC,Children's Services - DSG Schools - Non DMT,Children & Education Services,Pre-School Learning Al,25/01/2016,396.60,Purchase Card Statement Summary,171011 - Education - School Services,
Solihull MBC,Children's Services & Skills,Children & Education Services,Quality Carpets,25/01/2016,300.00,Purchase Card Statement Summary,101300 - Building Construction Materials - Floor Coverings,
Solihull MBC,Children's Services & Skills,Children & Education Services,Quality Hotel Coventry,25/01/2016,75.00,Purchase Card Statement Summary,261000 - Human Resources - Accommodation,
Solihull MBC,Children's Services - DSG Schools - Non DMT,Children & Education Services,RAC Motoring Servi,08/12/2015,334.56,Other Transport Costs,201800 - Financial Services - Insurance,
Solihull MBC,Children's Services - DSG Central.,Children & Education Services,Revital Health Sho,25/01/2016,4.30,Purchase Card Statement Summary,161000 - Domestic Goods - Commercial,
Solihull MBC,Managed Growth,Cultural & Related Services,Robert Dyas Holdng Ltd,19/12/2015,10.28,Purchase Card Statement Summary,101400 - Building Construction Materials - General Materials,
Solihull MBC,Children's Services - DSG Schools - Non DMT,Children & Education Services,Sacat Marks & Spencer,25/01/2016,53.00,Purchase Card Statement Summary,111200 - Catering - Food & Beverages,
Solihull MBC,Children's Services - DSG Schools - Non DMT,Children & Education Services,Sainsbury's,10/12/2015,53.40,Catering Provisions,111200 - Catering - Food & Beverages,
Solihull MBC,Children's Services - DSG Schools - Non DMT,Children & Education Services,Sainsburys S Mkt,15/12/2015,2.00,Capitation,111200 - Catering - Food & Beverages,
Solihull MBC,Children's Services - DSG Schools - Non DMT,Children & Education Services,Sainsbury's S Mkt,03/12/2015,3.95,Catering Provisions,111200 - Catering - Food & Beverages,
Solihull MBC,Children's Services - DSG Schools - Non DMT,Children & Education Services,Sainsbury's S Mkt,16/12/2015,8.00,Catering Provisions,111200 - Catering - Food & Beverages,
Solihull MBC,Children's Services - DSG Schools - Non DMT,Children & Education Services,Sainsbury's S Mkt,14/12/2015,13.50,Catering Provisions,111200 - Catering - Food & Beverages,
Solihull MBC,Children's Services - DSG Schools - Non DMT,Children & Education Services,Sainsbury's S Mkt,07/12/2015,38.60,Capitation,111200 - Catering - Food & Beverages,
Solihull MBC,Children's Services - DSG Schools - Non DMT,Children & Education Services,Sainsburys S Mkts,15/12/2015,4.17,Capitation,111200 - Catering - Food & Beverages,
Solihull MBC,Children's Services - DSG Schools - Non DMT,Children & Education Services,Sainsburys S Mkts,08/12/2015,15.12,Postage & Courier Services,111200 - Catering - Food & Beverages,
Solihull MBC,Children's Services - DSG Schools - Non DMT,Children & Education Services,Sainsburys S Mkts,18/12/2015,15.12,Postage & Courier Services,111200 - Catering - Food & Beverages,
Solihull MBC,Communities & Adult Social Care,Adult Social Care,Sainsbury's S/Mkt,25/01/2016,6.00,Purchase Card Statement Summary,111200 - Catering - Food & Beverages,
Solihull MBC,Communities & Adult Social Care,Adult Social Care,Sainsbury's S/Mkt,25/01/2016,15.65,Purchase Card Statement Summary,111200 - Catering - Food & Beverages,
Solihull MBC,Communities & Adult Social Care,Adult Social Care,Sainsbury's S/Mkt,25/01/2016,20.90,Purchase Card Statement Summary,111200 - Catering - Food & Beverages,
Solihull MBC,Communities & Adult Social Care,Adult Social Care,Sainsbury's S/Mkt,25/01/2016,37.64,Purchase Card Statement Summary,111200 - Catering - Food & Beverages,
Solihull MBC,Communities & Adult Social Care,Adult Social Care,Sainsbury's S/Mkt,25/01/2016,42.00,Purchase Card Statement Summary,111200 - Catering - Food & Beverages,
Solihull MBC,Communities & Adult Social Care,Adult Social Care,Sainsbury's S/Mkt,25/01/2016,44.60,Purchase Card Statement Summary,111200 - Catering - Food & Beverages,
Solihull MBC,Communities & Adult Social Care,Adult Social Care,Sainsbury's S/Mkt,25/01/2016,56.75,Purchase Card Statement Summary,111200 - Catering - Food & Beverages,
Solihull MBC,Children's Services - DSG Schools - Non DMT,Children & Education Services,Sainsbury's S/Mkt,25/01/2016,60.93,Purchase Card Statement Summary,111200 - Catering - Food & Beverages,
Solihull MBC,Children's Services - DSG Schools - Non DMT,Children & Education Services,Sainsbury's S/Mkt,25/01/2016,70.20,Purchase Card Statement Summary,111200 - Catering - Food & Beverages,
Solihull MBC,Children's Services - DSG Schools - Non DMT,Children & Education Services,Sainsburys S/Mkts,25/01/2016,1.48,Purchase Card Statement Summary,111200 - Catering - Food & Beverages,
Solihull MBC,Children's Services - DSG Schools - Non DMT,Children & Education Services,Sainsburys S/Mkts,25/01/2016,2.20,Purchase Card Statement Summary,111200 - Catering - Food & Beverages,
Solihull MBC,Children's Services - DSG Central.,Children & Education Services,Sainsburys S/Mkts,25/01/2016,2.55,Purchase Card Statement Summary,111200 - Catering - Food & Beverages,
Solihull MBC,Children's Services - DSG Central.,Children & Education Services,Sainsburys S/Mkts,25/01/2016,3.00,Purchase Card Statement Summary,111200 - Catering - Food & Beverages,
Solihull MBC,Communities & Adult Social Care,Adult Social Care,Sainsburys S/Mkts,25/01/2016,4.00,Purchase Card Statement Summary,111200 - Catering - Food & Beverages,
Solihull MBC,Children's Services - DSG Schools - Non DMT,Children & Education Services,Sainsburys S/Mkts,25/01/2016,4.50,Purchase Card Statement Summary,111200 - Catering - Food & Beverages,
Solihull MBC,Resources,Central Services to the Public,Sainsburys S/Mkts,25/01/2016,5.00,Purchase Card Statement Summary,111200 - Catering - Food & Beverages,
Solihull MBC,Children's Services - DSG Central.,Children & Education Services,Sainsburys S/Mkts,25/01/2016,10.99,Purchase Card Statement Summary,111200 - Catering - Food & Beverages,
Solihull MBC,Children's Services - DSG Schools - Non DMT,Children & Education Services,Sainsburys S/Mkts,25/01/2016,11.93,Purchase Card Statement Summary,111200 - Catering - Food & Beverages,
Solihull MBC,Communities & Adult Social Care,Adult Social Care,Sainsburys S/Mkts,25/01/2016,15.93,Purchase Card Statement Summary,111200 - Catering - Food & Beverages,
Solihull MBC,Communities & Adult Social Care,Adult Social Care,Sainsburys S/Mkts,25/01/2016,21.94,Purchase Card Statement Summary,111200 - Catering - Food & Beverages,
Solihull MBC,Communities & Adult Social Care,Adult Social Care,Sainsburys S/Mkts,25/01/2016,40.60,Purchase Card Statement Summary,111200 - Catering - Food & Beverages,
Solihull MBC,Communities & Adult Social Care,Adult Social Care,Sainsburys S/Mkts,25/01/2016,46.06,Purchase Card Statement Summary,111200 - Catering - Food & Beverages,
Solihull MBC,Communities & Adult Social Care,Adult Social Care,Sainsburys S/Mkts,25/01/2016,164.31,Purchase Card Statement Summary,111200 - Catering - Food & Beverages,
Solihull MBC,Children's Services - DSG Schools - Non DMT,Children & Education Services,Sainsbury's Smkt,25/01/2016,43.14,Purchase Card Statement Summary,111200 - Catering - Food & Beverages,
Solihull MBC,Children's Services & Skills,Children & Education Services,Sainsbury's Smkt,06/12/2015,13.70,Catering Provisions,111200 - Catering - Food & Beverages,
Solihull MBC,Communities & Adult Social Care,Adult Social Care,Saracens Head,25/01/2016,11.00,Purchase Card Statement Summary,261600 - Human Resources - Travel & Subsistence,
Solihull MBC,Children's Services - DSG Schools - Non DMT,Children & Education Services,Savers Health & Beauty,07/12/2015,3.97,Capitation,311200 - Healthcare - Drugs,
Solihull MBC,Children's Services - DSG Schools - Non DMT,Children & Education Services,Screwfix Direct,10/12/2015,30.82,Repair & Maintn Of Buildings,102500 - Building Construction Materials - Timber,
Solihull MBC,Children's Services - DSG Schools - Non DMT,Children & Education Services,Screwfix Direct,02/12/2015,39.97,Repair & Maintn Of Buildings,102500 - Building Construction Materials - Timber,
Solihull MBC,Children's Services - DSG Schools - Non DMT,Children & Education Services,Screwfix Direct Lt,25/01/2016,15.99,Purchase Card Statement Summary,102500 - Building Construction Materials - Timber,
Solihull MBC,Managed Growth,Highways & Transport Services,Screwfix Direct Lt,25/01/2016,267.15,Purchase Card Statement Summary,102500 - Building Construction Materials - Timber,
Solihull MBC,Children's Services - DSG Schools - Non DMT,Children & Education Services,Screwfix Direct Lt,28/12/2015,6.17,Building Maint Day To Day,102500 - Building Construction Materials - Timber,
Solihull MBC,Children's Services - DSG Schools - Non DMT,Children & Education Services,Screwfix Direct Lt,14/12/2015,24.99,Building Maint Planned,102500 - Building Construction Materials - Timber,
Solihull MBC,Children's Services - DSG Schools - Non DMT,Children & Education Services,Screwfix Direct Lt,23/12/2015,29.97,Building Maint Day To Day,102500 - Building Construction Materials - Timber,
Solihull MBC,Children's Services - DSG Schools - Non DMT,Children & Education Services,Screwfix Direct Lt,14/12/2015,99.99,Building Maint Day To Day,102500 - Building Construction Materials - Timber,
Solihull MBC,Managed Growth,Cultural & Related Services,SDAFoodService,25/01/2016,214.80,Purchase Card Statement Summary,349999 - Stationery - Not Elsewhere Classified,
Solihull MBC,Managed Growth,Environmental and Regulatory Services,Shell Shirley Tria,25/01/2016,5.00,Purchase Card Statement Summary,381100 - Vehicle Management - Fuel,
Solihull MBC,Resources,Central Services to the Public,Sight And Sound Techno,25/01/2016,204.59,Purchase Card Statement Summary,271200 - Information Communications Technology - Hardware,
Solihull MBC,Managed Growth - HRA,Housing Revenue Account,SimonJersey,25/01/2016,389.29,General Debtors,141000 - Clothing - Children & Adults,
Solihull MBC,Managed Growth - HRA,Housing Revenue Account,Simonjersey,21/12/2015,98.57,General Debtors,141000 - Clothing - Children & Adults,
Solihull MBC,Children's Services & Skills,Children & Education Services,SMBC  Revenues - C,25/01/2016,-28.00,Purchase Card Statement Summary,151900 - Consultancy - Management,
Solihull MBC,Children's Services & Skills,Children & Education Services,SMBC  Revenues - C,25/01/2016,28.00,Purchase Card Statement Summary,151900 - Consultancy - Management,
Solihull MBC,Children's Services - DSG Schools - Non DMT,Children & Education Services,Smyths Toys UK Ltd,25/01/2016,30.97,Purchase Card Statement Summary,171117 - Education - Toys,
Solihull MBC,Children's Services - DSG Schools - Non DMT,Children & Education Services,Snapfish UK *,15/12/2015,34.32,Materials For Resale,192000 - Facilities & Management Services - Reprographics,
Solihull MBC,Children's Services - DSG Schools - Non DMT,Children & Education Services,Snowdome Ltd,15/12/2015,414.58,Visits & Pupil Activities,291400 - Arts & Leisure Services - Sport & Fitness,
Solihull MBC,Children's Services - DSG Schools - Non DMT,Children & Education Services,Solihull MBC,03/12/2015,40.00,Capitation,151900 - Consultancy - Management,
Solihull MBC,Children's Services & Skills,Children & Education Services,Sportsdirect 188,15/12/2015,7.98,Furniture & Equipment,331300 - Sports & Playground Equipment & Maintenance - Sports Equipment,
Solihull MBC,Managed Growth,Highways & Transport Services,Sportswear Int. Ltd,21/12/2015,373.32,Clothing & Uniforms,141000 - Clothing - Children & Adults,
Solihull MBC,Children's Services - DSG Schools - Non DMT,Children & Education Services,Staples UK,25/01/2016,14.49,Purchase Card Statement Summary,341100 - Stationery - Sundries,
Solihull MBC,Managed Growth,Highways & Transport Services,Staples UK,25/01/2016,52.35,Purchase Card Statement Summary,341100 - Stationery - Sundries,
Solihull MBC,Managed Growth,Cultural & Related Services,Starlite,08/12/2015,460.17,Furniture & Equipment,141000 - Clothing - Children & Adults,
Solihull MBC,Communities & Adult Social Care,Adult Social Care,Superdrug Stores PLC,25/01/2016,2.44,Purchase Card Statement Summary,311200 - Healthcare - Drugs,
Solihull MBC,Children's Services - DSG Schools - Non DMT,Children & Education Services,TES Global Ltd,25/01/2016,99.00,Purchase Card Statement Summary,349999 - Stationery - Not Elsewhere Classified,
Solihull MBC,Children's Services - DSG Schools - Non DMT,Children & Education Services,Tesco - Entertainer,25/01/2016,92.94,Purchase Card Statement Summary,161000 - Domestic Goods - Commercial,
Solihull MBC,Children's Services - DSG Schools - Non DMT,Children & Education Services,Tesco - The Beanie House,25/01/2016,20.94,Purchase Card Statement Summary,161000 - Domestic Goods - Commercial,
Solihull MBC,Children's Services - DSG Schools - Non DMT,Children & Education Services,Tesco Clothing UK,25/01/2016,15.00,Purchase Card Statement Summary,141000 - Clothing - Children & Adults,
Solihull MBC,Children's Services - DSG Schools - Non DMT,Children & Education Services,Tesco Delivery Saver2,25/01/2016,6.00,Purchase Card Statement Summary,161000 - Domestic Goods - Commercial,
Solihull MBC,Children's Services - DSG Schools - Non DMT,Children & Education Services,Tesco Direct,25/01/2016,125.94,Purchase Card Statement Summary,161000 - Domestic Goods - Commercial,
Solihull MBC,Children's Services - DSG Schools - Non DMT,Children & Education Services,Tesco Direct,07/12/2015,-99.00,IT Equipment & Software,161000 - Domestic Goods - Commercial,
Solihull MBC,Communities & Adult Social Care,Adult Social Care,Tesco Store 2785,28/12/2015,2.10,Catering Provisions,111200 - Catering - Food & Beverages,
Solihull MBC,Communities & Adult Social Care,Adult Social Care,Tesco Store 2785,28/12/2015,9.83,Cleaning,111200 - Catering - Food & Beverages,
Solihull MBC,Communities & Adult Social Care,Adult Social Care,Tesco Store 2785,13/12/2015,12.50,Catering Provisions,111200 - Catering - Food & Beverages,
Solihull MBC,Communities & Adult Social Care,Adult Social Care,Tesco Store 2785,09/12/2015,50.61,Catering Provisions,111200 - Catering - Food & Beverages,
Solihull MBC,Communities & Adult Social Care,Adult Social Care,Tesco Store 2785,28/12/2015,52.07,Catering Provisions,111200 - Catering - Food & Beverages,
Solihull MBC,Communities & Adult Social Care,Adult Social Care,Tesco Store 2785,13/12/2015,61.71,Catering Provisions,111200 - Catering - Food & Beverages,
Solihull MBC,Children's Services - DSG Central.,Children & Education Services,Tesco Store 3188,25/01/2016,3.60,Purchase Card Statement Summary,111200 - Catering - Food & Beverages,
Solihull MBC,Communities & Adult Social Care,Adult Social Care,Tesco Store 3188,25/01/2016,6.34,Purchase Card Statement Summary,111200 - Catering - Food & Beverages,
Solihull MBC,Children's Services - DSG Central.,Children & Education Services,Tesco Store 3188,25/01/2016,7.40,Purchase Card Statement Summary,111200 - Catering - Food & Beverages,
Solihull MBC,Communities & Adult Social Care,Adult Social Care,Tesco Store 3188,25/01/2016,7.69,Purchase Card Statement Summary,111200 - Catering - Food & Beverages,
Solihull MBC,Communities & Adult Social Care,Adult Social Care,Tesco Store 3188,25/01/2016,9.20,Purchase Card Statement Summary,111200 - Catering - Food & Beverages,
Solihull MBC,Communities & Adult Social Care,Adult Social Care,Tesco Store 3188,25/01/2016,9.39,Purchase Card Statement Summary,111200 - Catering - Food & Beverages,
Solihull MBC,Communities & Adult Social Care,Adult Social Care,Tesco Store 3188,25/01/2016,9.90,Purchase Card Statement Summary,111200 - Catering - Food & Beverages,
Solihull MBC,Communities & Adult Social Care,Adult Social Care,Tesco Store 3188,25/01/2016,10.31,Purchase Card Statement Summary,111200 - Catering - Food & Beverages,
Solihull MBC,Communities & Adult Social Care,Adult Social Care,Tesco Store 3188,25/01/2016,10.80,Purchase Card Statement Summary,111200 - Catering - Food & Beverages,
Solihull MBC,Communities & Adult Social Care,Adult Social Care,Tesco Store 3188,25/01/2016,11.20,Purchase Card Statement Summary,111200 - Catering - Food & Beverages,
Solihull MBC,Communities & Adult Social Care,Adult Social Care,Tesco Store 3188,25/01/2016,16.80,Purchase Card Statement Summary,111200 - Catering - Food & Beverages,
Solihull MBC,Communities & Adult Social Care,Adult Social Care,Tesco Store 3188,25/01/2016,17.07,Purchase Card Statement Summary,111200 - Catering - Food & Beverages,
Solihull MBC,Communities & Adult Social Care,Adult Social Care,Tesco Store 3188,25/01/2016,18.35,Purchase Card Statement Summary,111200 - Catering - Food & Beverages,
Solihull MBC,Communities & Adult Social Care,Adult Social Care,Tesco Store 3188,25/01/2016,18.40,Purchase Card Statement Summary,111200 - Catering - Food & Beverages,
Solihull MBC,Communities & Adult Social Care,Adult Social Care,Tesco Store 3188,25/01/2016,21.65,Purchase Card Statement Summary,111200 - Catering - Food & Beverages,
Solihull MBC,Communities & Adult Social Care,Adult Social Care,Tesco Store 3188,25/01/2016,22.58,Purchase Card Statement Summary,111200 - Catering - Food & Beverages,
Solihull MBC,Communities & Adult Social Care,Adult Social Care,Tesco Store 3188,25/01/2016,22.73,Purchase Card Statement Summary,111200 - Catering - Food & Beverages,
Solihull MBC,Communities & Adult Social Care,Adult Social Care,Tesco Store 3188,25/01/2016,22.73,Purchase Card Statement Summary,111200 - Catering - Food & Beverages,
Solihull MBC,Communities & Adult Social Care,Adult Social Care,Tesco Store 3188,25/01/2016,23.36,Purchase Card Statement Summary,111200 - Catering - Food & Beverages,
Solihull MBC,Communities & Adult Social Care,Adult Social Care,Tesco Store 3188,25/01/2016,24.64,Purchase Card Statement Summary,111200 - Catering - Food & Beverages,
Solihull MBC,Communities & Adult Social Care,Adult Social Care,Tesco Store 3188,25/01/2016,28.40,Purchase Card Statement Summary,111200 - Catering - Food & Beverages,
Solihull MBC,Communities & Adult Social Care,Adult Social Care,Tesco Store 3188,25/01/2016,30.70,Purchase Card Statement Summary,111200 - Catering - Food & Beverages,
Solihull MBC,Communities & Adult Social Care,Adult Social Care,Tesco Store 3188,25/01/2016,31.57,Purchase Card Statement Summary,111200 - Catering - Food & Beverages,
Solihull MBC,Communities & Adult Social Care,Adult Social Care,Tesco Store 3188,25/01/2016,32.95,Purchase Card Statement Summary,111200 - Catering - Food & Beverages,
Solihull MBC,Communities & Adult Social Care,Adult Social Care,Tesco Store 3188,25/01/2016,37.20,Purchase Card Statement Summary,111200 - Catering - Food & Beverages,
Solihull MBC,Children's Services - DSG Schools - Non DMT,Children & Education Services,Tesco Store 3188,25/01/2016,44.93,Purchase Card Statement Summary,111200 - Catering - Food & Beverages,
Solihull MBC,Communities & Adult Social Care,Adult Social Care,Tesco Store 3188,25/01/2016,50.15,Purchase Card Statement Summary,111200 - Catering - Food & Beverages,
Solihull MBC,Children's Services - DSG Schools - Non DMT,Children & Education Services,Tesco Store 3188,25/01/2016,51.77,Purchase Card Statement Summary,111200 - Catering - Food & Beverages,
Solihull MBC,Communities & Adult Social Care,Adult Social Care,Tesco Store 3188,25/01/2016,62.08,Purchase Card Statement Summary,111200 - Catering - Food & Beverages,
Solihull MBC,Communities & Adult Social Care,Adult Social Care,Tesco Store 3188,25/01/2016,63.58,Purchase Card Statement Summary,111200 - Catering - Food & Beverages,
Solihull MBC,Communities & Adult Social Care,Adult Social Care,Tesco Store 3188,25/01/2016,64.87,Purchase Card Statement Summary,111200 - Catering - Food & Beverages,
Solihull MBC,Communities & Adult Social Care,Adult Social Care,Tesco Store 3188,25/01/2016,66.55,Purchase Card Statement Summary,111200 - Catering - Food & Beverages,
Solihull MBC,Communities & Adult Social Care,Adult Social Care,Tesco Store 3188,25/01/2016,66.74,Purchase Card Statement Summary,111200 - Catering - Food & Beverages,
Solihull MBC,Communities & Adult Social Care,Adult Social Care,Tesco Store 3188,25/01/2016,75.44,Purchase Card Statement Summary,111200 - Catering - Food & Beverages,
Solihull MBC,Communities & Adult Social Care,Adult Social Care,Tesco Store 3188,25/01/2016,87.54,Purchase Card Statement Summary,111200 - Catering - Food & Beverages,
Solihull MBC,Communities & Adult Social Care,Adult Social Care,Tesco Store 3188,25/01/2016,92.78,Purchase Card Statement Summary,111200 - Catering - Food & Beverages,
Solihull MBC,Communities & Adult Social Care,Adult Social Care,Tesco Store 3188,25/01/2016,93.21,Purchase Card Statement Summary,111200 - Catering - Food & Beverages,
Solihull MBC,Communities & Adult Social Care,Adult Social Care,Tesco Store 3188,25/01/2016,102.71,Purchase Card Statement Summary,111200 - Catering - Food & Beverages,
Solihull MBC,Communities & Adult Social Care,Adult Social Care,Tesco Store 3188,25/01/2016,104.52,Purchase Card Statement Summary,111200 - Catering - Food & Beverages,
Solihull MBC,Communities & Adult Social Care,Adult Social Care,Tesco Store 3188,25/01/2016,104.61,Purchase Card Statement Summary,111200 - Catering - Food & Beverages,
Solihull MBC,Communities & Adult Social Care,Adult Social Care,Tesco Store 3188,25/01/2016,112.71,Purchase Card Statement Summary,111200 - Catering - Food & Beverages,
Solihull MBC,Communities & Adult Social Care,Adult Social Care,Tesco Store 3188,25/01/2016,113.13,Purchase Card Statement Summary,111200 - Catering - Food & Beverages,
Solihull MBC,Children's Services - DSG Schools - Non DMT,Children & Education Services,Tesco Store 3188,25/01/2016,114.83,Purchase Card Statement Summary,111200 - Catering - Food & Beverages,
Solihull MBC,Children's Services - DSG Schools - Non DMT,Children & Education Services,Tesco Store 3188,25/01/2016,118.16,Purchase Card Statement Summary,111200 - Catering - Food & Beverages,
Solihull MBC,Communities & Adult Social Care,Adult Social Care,Tesco Store 3188,25/01/2016,119.31,Purchase Card Statement Summary,111200 - Catering - Food & Beverages,
Solihull MBC,Communities & Adult Social Care,Adult Social Care,Tesco Store 3188,25/01/2016,127.95,Purchase Card Statement Summary,111200 - Catering - Food & Beverages,
Solihull MBC,Communities & Adult Social Care,Adult Social Care,Tesco Store 3188,25/01/2016,128.38,Purchase Card Statement Summary,111200 - Catering - Food & Beverages,
Solihull MBC,Communities & Adult Social Care,Adult Social Care,Tesco Store 3188,25/01/2016,130.78,Purchase Card Statement Summary,111200 - Catering - Food & Beverages,
Solihull MBC,Communities & Adult Social Care,Adult Social Care,Tesco Store 3188,25/01/2016,195.78,Purchase Card Statement Summary,111200 - Catering - Food & Beverages,
Solihull MBC,Communities & Adult Social Care,Adult Social Care,Tesco Store 3188,18/12/2015,1.50,Purchase Card Statement Summary,111200 - Catering - Food & Beverages,
Solihull MBC,Children's Services - DSG Schools - Non DMT,Children & Education Services,Tesco Store 3188,15/12/2015,3.00,Catering Provisions,111200 - Catering - Food & Beverages,
Solihull MBC,Communities & Adult Social Care,Adult Social Care,Tesco Store 3188,18/12/2015,3.33,Purchase Card Statement Summary,111200 - Catering - Food & Beverages,
Solihull MBC,Communities & Adult Social Care,Adult Social Care,Tesco Store 3188,11/12/2015,3.98,Purchase Card Statement Summary,111200 - Catering - Food & Beverages,
Solihull MBC,Communities & Adult Social Care,Adult Social Care,Tesco Store 3188,20/12/2015,4.63,Cleaning,111200 - Catering - Food & Beverages,
Solihull MBC,Communities & Adult Social Care,Adult Social Care,Tesco Store 3188,24/12/2015,5.28,Catering Provisions,111200 - Catering - Food & Beverages,
Solihull MBC,Children's Services - DSG Schools - Non DMT,Children & Education Services,Tesco Store 3188,06/12/2015,5.94,Catering Provisions,111200 - Catering - Food & Beverages,
Solihull MBC,Communities & Adult Social Care,Adult Social Care,Tesco Store 3188,20/12/2015,9.21,Catering Provisions,111200 - Catering - Food & Beverages,
Solihull MBC,Children's Services - DSG Schools - Non DMT,Children & Education Services,Tesco Store 3188,14/12/2015,10.27,Capitation,111200 - Catering - Food & Beverages,
Solihull MBC,Communities & Adult Social Care,Adult Social Care,Tesco Store 3188,27/12/2015,11.55,Purchase Card Statement Summary,111200 - Catering - Food & Beverages,
Solihull MBC,Children's Services - DSG Schools - Non DMT,Children & Education Services,Tesco Store 3188,13/12/2015,16.30,Capitation,111200 - Catering - Food & Beverages,
Solihull MBC,Communities & Adult Social Care,Adult Social Care,Tesco Store 3188,06/12/2015,21.01,Catering Provisions,111200 - Catering - Food & Beverages,
Solihull MBC,Communities & Adult Social Care,Adult Social Care,Tesco Store 3188,24/12/2015,22.66,Catering Provisions,111200 - Catering - Food & Beverages,
Solihull MBC,Children's Services - DSG Schools - Non DMT,Children & Education Services,Tesco Store 3188,10/12/2015,25.06,Capitation,111200 - Catering - Food & Beverages,
Solihull MBC,Communities & Adult Social Care,Adult Social Care,Tesco Store 3188,20/12/2015,32.47,Catering Provisions,111200 - Catering - Food & Beverages,
Solihull MBC,Children's Services - DSG Schools - Non DMT,Children & Education Services,Tesco Store 3188,10/12/2015,33.62,Capitation,111200 - Catering - Food & Beverages,
Solihull MBC,Children's Services - DSG Schools - Non DMT,Children & Education Services,Tesco Store 3188,09/12/2015,43.52,Catering Provisions,111200 - Catering - Food & Beverages,
Solihull MBC,Children's Services - DSG Schools - Non DMT,Children & Education Services,Tesco Store 3188,09/12/2015,44.74,Capitation,111200 - Catering - Food & Beverages,
Solihull MBC,Children's Services - DSG Schools - Non DMT,Children & Education Services,Tesco Store 3188,09/12/2015,48.65,Capitation,111200 - Catering - Food & Beverages,
Solihull MBC,Children's Services - DSG Schools - Non DMT,Children & Education Services,Tesco Store 3188,07/12/2015,182.71,Catering Provisions,111200 - Catering - Food & Beverages,
Solihull MBC,Children's Services - DSG Schools - Non DMT,Children & Education Services,Tesco Store 3188,14/12/2015,230.30,Catering Provisions,111200 - Catering - Food & Beverages,
Solihull MBC,Children's Services - DSG Schools - Non DMT,Children & Education Services,Tesco Store 3539,15/12/2015,-11.50,Catering Provisions,111200 - Catering - Food & Beverages,
Solihull MBC,Communities & Adult Social Care,Adult Social Care,Tesco Stores 2325,25/01/2016,10.20,Purchase Card Statement Summary,111200 - Catering - Food & Beverages,
Solihull MBC,Children's Services - DSG Schools - Non DMT,Children & Education Services,Tesco Stores 2328,07/12/2015,-0.75,Catering Provisions,111200 - Catering - Food & Beverages,
Solihull MBC,Children's Services - DSG Schools - Non DMT,Children & Education Services,Tesco Stores 2328,07/12/2015,49.97,Catering Provisions,111200 - Catering - Food & Beverages,
Solihull MBC,Children's Services - DSG Schools - Non DMT,Children & Education Services,Tesco Stores 2328,07/12/2015,82.90,Capitation,111200 - Catering - Food & Beverages,
Solihull MBC,Children's Services - DSG Schools - Non DMT,Children & Education Services,Tesco Stores 2328,14/12/2015,122.12,Catering Provisions,111200 - Catering - Food & Beverages,
Solihull MBC,Communities & Adult Social Care,Adult Social Care,Tesco Stores 2515,18/12/2015,4.00,Purchase Card Statement Summary,111200 - Catering - Food & Beverages,
Solihull MBC,Children's Services - DSG Schools - Non DMT,Children & Education Services,Tesco Stores 5114,25/01/2016,36.00,Purchase Card Statement Summary,111200 - Catering - Food & Beverages,
Solihull MBC,Children's Services - DSG Schools - Non DMT,Children & Education Services,Tesco Stores 6685,13/12/2015,5.00,Meetings & Other Expenses,111200 - Catering - Food & Beverages,
Solihull MBC,Children's Services - DSG Schools - Non DMT,Children & Education Services,Tesco Stores-2250,25/01/2016,6.05,Purchase Card Statement Summary,111200 - Catering - Food & Beverages,
Solihull MBC,Managed Growth,Cultural & Related Services,Tesco Stores-5014,12/12/2015,10.00,Furniture & Equipment,111200 - Catering - Food & Beverages,
Solihull MBC,Communities & Adult Social Care,Adult Social Care,Tesco-Stores 3188,25/01/2016,2.70,Purchase Card Statement Summary,111200 - Catering - Food & Beverages,
Solihull MBC,Children's Services - DSG Central.,Children & Education Services,Tesco-Stores 3188,25/01/2016,8.39,Purchase Card Statement Summary,111200 - Catering - Food & Beverages,
Solihull MBC,Children's Services - DSG Schools - Non DMT,Children & Education Services,Tesco-Stores 3188,03/12/2015,1.33,Catering Provisions,111200 - Catering - Food & Beverages,
Solihull MBC,Children's Services - DSG Schools - Non DMT,Children & Education Services,Tesco-Stores 3188,07/12/2015,19.50,Other Employee Costs,111200 - Catering - Food & Beverages,
Solihull MBC,Communities & Adult Social Care,Adult Social Care,Tesco-Stores 6463,25/01/2016,14.79,Purchase Card Statement Summary,111200 - Catering - Food & Beverages,
Solihull MBC,Children's Services - DSG Schools - Non DMT,Children & Education Services,Tesco-Stores 6463,04/12/2015,29.89,Capitation,111200 - Catering - Food & Beverages,
Solihull MBC,Children's Services - DSG Schools - Non DMT,Children & Education Services,TFH,10/12/2015,14.95,Capitation,169999 - Domestic Goods - Not Elsewhere Classified,
Solihull MBC,Resources,Central Services to the Public,The Chiltern Rlywy,25/01/2016,4.20,Purchase Card Statement Summary,261600 - Human Resources - Travel & Subsistence,
Solihull MBC,Resources,Central Services to the Public,The Chiltern Rlywy,25/01/2016,60.60,Purchase Card Statement Summary,261600 - Human Resources - Travel & Subsistence,
Solihull MBC,Communities & Adult Social Care,Adult Social Care,The Curry Garden 1963 Bir,08/12/2015,119.00,Training,111000 - Catering - Banquet & Catering,
Solihull MBC,Public Health & Commissioning ,Central Services to the Public,The Fitzroy Hotel,07/12/2015,49.00,Officers Expenses,261000 - Human Resources - Accommodation,
Solihull MBC,Children's Services - DSG Schools - Non DMT,Children & Education Services,The Pet Centre Shirley L,25/01/2016,15.88,Purchase Card Statement Summary,169999 - Domestic Goods - Not Elsewhere Classified,
Solihull MBC,Children's Services - DSG Schools - Non DMT,Children & Education Services,The Post Office,25/01/2016,5.15,Purchase Card Statement Summary,301200 - Mail Services - Postage,
Solihull MBC,Children's Services & Skills,Children & Education Services,The Post Office,25/01/2016,37.80,Purchase Card Statement Summary,301200 - Mail Services - Postage,
Solihull MBC,Children's Services & Skills,Children & Education Services,The Post Office,25/01/2016,126.00,Purchase Card Statement Summary,301200 - Mail Services - Postage,
Solihull MBC,Children's Services & Skills,Children & Education Services,The Post Office,25/01/2016,150.00,Purchase Card Statement Summary,301200 - Mail Services - Postage,
Solihull MBC,Children's Services & Skills,Children & Education Services,The Post Office,25/01/2016,150.00,Purchase Card Statement Summary,301200 - Mail Services - Postage,
Solihull MBC,Children's Services & Skills,Children & Education Services,The Post Office,25/01/2016,150.00,Purchase Card Statement Summary,301200 - Mail Services - Postage,
Solihull MBC,Children's Services & Skills,Children & Education Services,The Post Office,25/01/2016,150.00,Purchase Card Statement Summary,301200 - Mail Services - Postage,
Solihull MBC,Children's Services & Skills,Children & Education Services,The Post Office,25/01/2016,150.00,Purchase Card Statement Summary,301200 - Mail Services - Postage,
Solihull MBC,Children's Services & Skills,Children & Education Services,The Post Office,25/01/2016,150.00,Purchase Card Statement Summary,301200 - Mail Services - Postage,
Solihull MBC,Children's Services & Skills,Children & Education Services,The Post Office,25/01/2016,150.00,Purchase Card Statement Summary,301200 - Mail Services - Postage,
Solihull MBC,Children's Services & Skills,Children & Education Services,The Post Office,25/01/2016,150.00,Purchase Card Statement Summary,301200 - Mail Services - Postage,
Solihull MBC,Children's Services & Skills,Children & Education Services,The Post Office,25/01/2016,150.00,Purchase Card Statement Summary,301200 - Mail Services - Postage,
Solihull MBC,Children's Services & Skills,Children & Education Services,The Post Office,25/01/2016,150.00,Purchase Card Statement Summary,301200 - Mail Services - Postage,
Solihull MBC,Children's Services - DSG Schools - Non DMT,Children & Education Services,The Post Office,18/12/2015,55.73,Postage & Courier Services,301200 - Mail Services - Postage,
Solihull MBC,Children's Services - DSG Schools - Non DMT,Children & Education Services,Thinkbuzan,25/01/2016,96.85,Purchase Card Statement Summary,271430 - Information Communication Technology - Software - Commercial Off-The-Shelf,
Solihull MBC,Children's Services & Skills,Children & Education Services,Ticketmaster UK,25/01/2016,23.50,Purchase Card Statement Summary,291300 - Arts & Leisure Services - Performing Arts,
Solihull MBC,Communities & Adult Social Care,Adult Social Care,Timpson Ltd,25/01/2016,18.00,Purchase Card Statement Summary,149999 - Clothing - Not Elsewhere Classified,
Solihull MBC,Communities & Adult Social Care,Adult Social Care,Timpson Ltd,25/01/2016,25.00,Purchase Card Statement Summary,149999 - Clothing - Not Elsewhere Classified,
Solihull MBC,Resources,Central Services to the Public,Timpson Ltd,04/12/2015,12.00,Other Premise Costs,149999 - Clothing - Not Elsewhere Classified,
Solihull MBC,Resources,Central Services to the Public,Timpson Ltd,16/12/2015,15.00,Other Premise Costs,149999 - Clothing - Not Elsewhere Classified,
Solihull MBC,Children's Services - DSG Schools - Non DMT,Children & Education Services,Toolman Yardley Limited,04/12/2015,29.97,Building Maint Day To Day,101400 - Building Construction Materials - General Materials,
Solihull MBC,Children's Services - DSG Schools - Non DMT,Children & Education Services,Toys R Us,16/12/2015,22.48,Capitation,169999 - Domestic Goods - Not Elsewhere Classified,
Solihull MBC,Managed Growth - HRA,Housing Revenue Account,Trainline,25/01/2016,78.03,General Debtors,261600 - Human Resources - Travel & Subsistence,
Solihull MBC,Children's Services & Skills,Children & Education Services,Trainline,25/01/2016,147.19,Purchase Card Statement Summary,261600 - Human Resources - Travel & Subsistence,
Solihull MBC,Children's Services & Skills,Children & Education Services,Trespass-Solihull,25/01/2016,47.96,Purchase Card Statement Summary,141000 - Clothing - Children & Adults,
Solihull MBC,Managed Growth,Cultural & Related Services,Tudor Environmental,25/01/2016,285.14,Purchase Card Statement Summary,249999 - Horticultural - Not Elsewhere Classified,
Solihull MBC,Children's Services - DSG Schools - Non DMT,Children & Education Services,TV Licensing,07/12/2015,145.50,IT Equipment & Software,151900 - Consultancy - Management,
Solihull MBC,Children's Services - DSG Schools - Non DMT,Children & Education Services,TVLicensing.co.uk,25/01/2016,145.50,Purchase Card Statement Summary,151900 - Consultancy - Management,
Solihull MBC,Children's Services & Skills,Children & Education Services,TVLicensing.co.uk,25/01/2016,145.50,Purchase Card Statement Summary,151900 - Consultancy - Management,
Solihull MBC,Children's Services & Skills,Children & Education Services,TVLicensing.co.uk,25/01/2016,145.50,Purchase Card Statement Summary,151900 - Consultancy - Management,
Solihull MBC,Children's Services & Skills,Children & Education Services,TVLicensing.co.uk,25/01/2016,145.50,Purchase Card Statement Summary,151900 - Consultancy - Management,
Solihull MBC,Children's Services - DSG Schools - Non DMT,Children & Education Services,Tvlicensing.co.uk,18/12/2015,145.50,Capitation,151900 - Consultancy - Management,
Solihull MBC,Children's Services - DSG Schools - Non DMT,Children & Education Services,Tvlicensing.co.uk,18/12/2015,145.50,Capitation,151900 - Consultancy - Management,
Solihull MBC,Children's Services & Skills,Children & Education Services,Virgintrains.co.uk,25/01/2016,87.90,Purchase Card Statement Summary,261600 - Human Resources - Travel & Subsistence,
Solihull MBC,Resources,Central Services to the Public,Visionaid Technologies,25/01/2016,349.32,Purchase Card Statement Summary,301200 - Mail Services - Postage,
Solihull MBC,Communities & Adult Social Care,Adult Social Care,W M Morrison,25/01/2016,1.71,Purchase Card Statement Summary,111200 - Catering - Food & Beverages,
Solihull MBC,Children's Services - DSG Schools - Non DMT,Children & Education Services,W M Morrison,25/01/2016,9.92,Purchase Card Statement Summary,111200 - Catering - Food & Beverages,
Solihull MBC,Children's Services - DSG Schools - Non DMT,Children & Education Services,W M Morrison,25/01/2016,11.10,Purchase Card Statement Summary,111200 - Catering - Food & Beverages,
Solihull MBC,Communities & Adult Social Care,Adult Social Care,W M Morrison,25/01/2016,20.98,Purchase Card Statement Summary,111200 - Catering - Food & Beverages,
Solihull MBC,Children's Services - DSG Schools - Non DMT,Children & Education Services,W M Morrison 073,25/01/2016,6.14,Purchase Card Statement Summary,111200 - Catering - Food & Beverages,
Solihull MBC,Communities & Adult Social Care,Adult Social Care,W M Morrisons,25/01/2016,1.32,Purchase Card Statement Summary,111200 - Catering - Food & Beverages,
Solihull MBC,Children's Services - DSG Schools - Non DMT,Children & Education Services,W M Morrisons,25/01/2016,3.79,Purchase Card Statement Summary,111200 - Catering - Food & Beverages,
Solihull MBC,Communities & Adult Social Care,Adult Social Care,W M Morrisons,25/01/2016,4.86,Purchase Card Statement Summary,111200 - Catering - Food & Beverages,
Solihull MBC,Communities & Adult Social Care,Adult Social Care,W M Morrisons,25/01/2016,8.00,Purchase Card Statement Summary,111200 - Catering - Food & Beverages,
Solihull MBC,Communities & Adult Social Care,Adult Social Care,W M Morrisons,25/01/2016,14.56,Purchase Card Statement Summary,111200 - Catering - Food & Beverages,
Solihull MBC,Communities & Adult Social Care,Adult Social Care,W M Morrisons,25/01/2016,14.63,Purchase Card Statement Summary,111200 - Catering - Food & Beverages,
Solihull MBC,Children's Services - DSG Schools - Non DMT,Children & Education Services,W M Morrisons,25/01/2016,14.84,Purchase Card Statement Summary,111200 - Catering - Food & Beverages,
Solihull MBC,Children's Services - DSG Schools - Non DMT,Children & Education Services,W M Morrisons,25/01/2016,19.37,Purchase Card Statement Summary,111200 - Catering - Food & Beverages,
Solihull MBC,Children's Services - DSG Central.,Children & Education Services,W M Morrisons,25/01/2016,19.57,Purchase Card Statement Summary,111200 - Catering - Food & Beverages,
Solihull MBC,Children's Services - DSG Schools - Non DMT,Children & Education Services,W M Morrisons,25/01/2016,20.36,Purchase Card Statement Summary,111200 - Catering - Food & Beverages,
Solihull MBC,Communities & Adult Social Care,Adult Social Care,W M Morrisons,25/01/2016,24.10,Purchase Card Statement Summary,111200 - Catering - Food & Beverages,
Solihull MBC,Communities & Adult Social Care,Adult Social Care,W M Morrisons,25/01/2016,24.87,Purchase Card Statement Summary,111200 - Catering - Food & Beverages,
Solihull MBC,Managed Growth - HRA,Housing Revenue Account,W M Morrisons,25/01/2016,25.96,General Debtors,111200 - Catering - Food & Beverages,
Solihull MBC,Resources,Other Housing Services,W M Morrisons,25/01/2016,25.96,Purchase Card Statement Summary,111200 - Catering - Food & Beverages,
Solihull MBC,Children's Services - DSG Schools - Non DMT,Children & Education Services,W M Morrisons,25/01/2016,29.22,Purchase Card Statement Summary,111200 - Catering - Food & Beverages,
Solihull MBC,Communities & Adult Social Care,Adult Social Care,W M Morrisons,25/01/2016,32.62,Purchase Card Statement Summary,111200 - Catering - Food & Beverages,
Solihull MBC,Communities & Adult Social Care,Adult Social Care,W M Morrisons,25/01/2016,32.79,Purchase Card Statement Summary,111200 - Catering - Food & Beverages,
Solihull MBC,Communities & Adult Social Care,Adult Social Care,W M Morrisons,25/01/2016,59.92,Purchase Card Statement Summary,111200 - Catering - Food & Beverages,
Solihull MBC,Communities & Adult Social Care,Adult Social Care,W M Morrisons,17/12/2015,2.50,Purchase Card Statement Summary,111200 - Catering - Food & Beverages,
Solihull MBC,Communities & Adult Social Care,Adult Social Care,W M Morrisons,08/12/2015,3.85,Catering Provisions,111200 - Catering - Food & Beverages,
Solihull MBC,Communities & Adult Social Care,Adult Social Care,W M Morrisons,10/12/2015,8.20,Catering Provisions,111200 - Catering - Food & Beverages,
Solihull MBC,Communities & Adult Social Care,Adult Social Care,W M Morrisons,10/12/2015,8.75,Catering Provisions,111200 - Catering - Food & Beverages,
Solihull MBC,Children's Services - DSG Central.,Children & Education Services,W M Morrisons,03/12/2015,13.53,Purchase Card Statement Summary,111200 - Catering - Food & Beverages,
Solihull MBC,Communities & Adult Social Care,Adult Social Care,W M Morrisons,17/12/2015,33.15,Catering Provisions,111200 - Catering - Food & Beverages,
Solihull MBC,Children's Services - DSG Schools - Non DMT,Children & Education Services,W M Morrisons.com,25/01/2016,184.29,Purchase Card Statement Summary,111200 - Catering - Food & Beverages,
Solihull MBC,Children's Services - DSG Central.,Children & Education Services,Waitrose 122,25/01/2016,2.20,Purchase Card Statement Summary,111200 - Catering - Food & Beverages,
Solihull MBC,Communities & Adult Social Care,Adult Social Care,Waitrose 150,25/01/2016,86.20,Purchase Card Statement Summary,111200 - Catering - Food & Beverages,
Solihull MBC,Business Change,Corporate & Democratic Core,West Coast Trains,25/01/2016,8.00,Purchase Card Statement Summary,261600 - Human Resources - Travel & Subsistence,
Solihull MBC,Business Change,Corporate & Democratic Core,West Coast Trains,25/01/2016,16.60,Purchase Card Statement Summary,261600 - Human Resources - Travel & Subsistence,
Solihull MBC,Managed Growth,Highways & Transport Services,West Midlands Trvl,25/01/2016,20.00,Purchase Card Statement Summary,361300 - Public Transport - Passenger Transport,
Solihull MBC,Managed Growth,Environmental and Regulatory Services,WH Smith,25/01/2016,6.96,Purchase Card Statement Summary,349999 - Stationery - Not Elsewhere Classified,
Solihull MBC,Children's Services - DSG Schools - Non DMT,Children & Education Services,WH Smith,25/01/2016,6.99,Purchase Card Statement Summary,349999 - Stationery - Not Elsewhere Classified,
Solihull MBC,Children's Services - DSG Schools - Non DMT,Children & Education Services,WH Smith,25/01/2016,14.99,Purchase Card Statement Summary,349999 - Stationery - Not Elsewhere Classified,
Solihull MBC,Managed Growth,Cultural & Related Services,WH Smith,14/12/2015,1.82,Furniture & Equipment,349999 - Stationery - Not Elsewhere Classified,
Solihull MBC,Children's Services - DSG Schools - Non DMT,Children & Education Services,WH Smith,15/12/2015,10.37,Capitation,349999 - Stationery - Not Elsewhere Classified,
Solihull MBC,Children's Services - DSG Central.,Children & Education Services,Whitley News 71926,25/01/2016,2.19,Purchase Card Statement Summary,111200 - Catering - Food & Beverages,
Solihull MBC,Children's Services - DSG Schools - Non DMT,Children & Education Services,Wickes Building,25/01/2016,50.75,Purchase Card Statement Summary,102500 - Building Construction Materials - Timber,
Solihull MBC,Children's Services - DSG Schools - Non DMT,Children & Education Services,Wickes Building,25/01/2016,329.99,Purchase Card Statement Summary,102500 - Building Construction Materials - Timber,
Solihull MBC,Children's Services & Skills,Children & Education Services,Wilko Retail Limit,25/01/2016,2.00,Purchase Card Statement Summary,169999 - Domestic Goods - Not Elsewhere Classified,
Solihull MBC,Communities & Adult Social Care,Adult Social Care,Wilko Retail Limit,25/01/2016,12.44,Purchase Card Statement Summary,169999 - Domestic Goods - Not Elsewhere Classified,
Solihull MBC,Managed Growth - HRA,Housing Revenue Account,Wilko Retail Limit,25/01/2016,20.00,General Debtors,169999 - Domestic Goods - Not Elsewhere Classified,
Solihull MBC,Communities & Adult Social Care,Adult Social Care,Wilko Retail Limit,25/01/2016,47.95,Purchase Card Statement Summary,169999 - Domestic Goods - Not Elsewhere Classified,
Solihull MBC,Children's Services - DSG Schools - Non DMT,Children & Education Services,Wilko Retail Limit,07/12/2015,21.27,Capitation,169999 - Domestic Goods - Not Elsewhere Classified,
Solihull MBC,Children's Services - DSG Schools - Non DMT,Children & Education Services,Wilko.com,25/01/2016,24.00,Purchase Card Statement Summary,169999 - Domestic Goods - Not Elsewhere Classified,
Solihull MBC,Children's Services - DSG Schools - Non DMT,Children & Education Services,Wilko.com,25/01/2016,61.00,Purchase Card Statement Summary,169999 - Domestic Goods - Not Elsewhere Classified,
Solihull MBC,Children's Services - DSG Schools - Non DMT,Children & Education Services,Wilko.com,25/01/2016,116.50,Purchase Card Statement Summary,169999 - Domestic Goods - Not Elsewhere Classified,
Solihull MBC,Children's Services - DSG Schools - Non DMT,Children & Education Services,Wilko.com,09/12/2015,53.33,Cleaning / Janitrl Materials,169999 - Domestic Goods - Not Elsewhere Classified,
Solihull MBC,Communities & Adult Social Care,Adult Social Care,Wm Morrison Food.com,25/01/2016,48.39,Purchase Card Statement Summary,111200 - Catering - Food & Beverages,
Solihull MBC,Communities & Adult Social Care,Adult Social Care,Wm Morrison Food.com,25/01/2016,72.41,Purchase Card Statement Summary,111200 - Catering - Food & Beverages,
Solihull MBC,Communities & Adult Social Care,Adult Social Care,Wm Morrison Food.com,25/01/2016,258.45,Purchase Card Statement Summary,111200 - Catering - Food & Beverages,
Solihull MBC,Children's Services - DSG Schools - Non DMT,Children & Education Services,Wm Morrison Food.com,09/12/2015,7.00,Capitation,111200 - Catering - Food & Beverages,
Solihull MBC,Children's Services - DSG Schools - Non DMT,Children & Education Services,Wm Morrison Food.com,14/12/2015,41.58,Capitation,111200 - Catering - Food & Beverages,
Solihull MBC,Children's Services - DSG Schools - Non DMT,Children & Education Services,Wm Morrison Food.com,07/12/2015,42.62,Capitation,111200 - Catering - Food & Beverages,
Solihull MBC,Children's Services - DSG Schools - Non DMT,Children & Education Services,Wm Morrison Food.com,07/12/2015,48.24,Capitation,111200 - Catering - Food & Beverages,
Solihull MBC,Children's Services - DSG Schools - Non DMT,Children & Education Services,Wm Morrisons Store,17/12/2015,4.00,Capitation,111200 - Catering - Food & Beverages,
Solihull MBC,Children's Services - DSG Schools - Non DMT,Children & Education Services,Wm Morrisons Store,17/12/2015,15.78,Capitation,111200 - Catering - Food & Beverages,
Solihull MBC,Children's Services - DSG Schools - Non DMT,Children & Education Services,Worderyeu,09/12/2015,-20.38,Capitation,171114 - Education - Literature,
Solihull MBC,Managed Growth,Environmental and Regulatory Services,Wpchrg.com,25/01/2016,15.00,Purchase Card Statement Summary,279999 - Information Communications Technology - Not Elsewhere Classified,
Solihull MBC,Children's Services - DSG Schools - Non DMT,Children & Education Services,www Prolaxshop Com,16/12/2015,-279.42,Capitation,331300 - Sports & Playground Equipment & Maintenance - Sports Equipment,
Solihull MBC,Children's Services & Skills,Children & Education Services,www Teamworkskarting Com,25/01/2016,45.00,Purchase Card Statement Summary,291400 - Arts & Leisure Services - Sport & Fitness,
Solihull MBC,Children's Services & Skills,Children & Education Services,www Teamworkskarting Com,17/12/2015,87.50,Other Fees,291400 - Arts & Leisure Services - Sport & Fitness,
Solihull MBC,Resources,Corporate & Democratic Core,www.AAT-org.uk,25/01/2016,88.00,Purchase Card Statement Summary,201000 - Financial Services - Accountancy,
Solihull MBC,Children's Services - DSG Schools - Non DMT,Children & Education Services,www.Bakerross.co.uk,14/12/2015,14.93,Capitation,171110 - Education - Arts & Crafts,
Solihull MBC,Children's Services & Skills,Children & Education Services,www.Birmingham.gov.uk,25/01/2016,12.00,Purchase Card Statement Summary,171011 - Education - School Services,
Solihull MBC,Children's Services & Skills,Children & Education Services,www.Birmingham.gov.uk,25/01/2016,12.00,Purchase Card Statement Summary,171011 - Education - School Services,
Solihull MBC,Children's Services & Skills,Children & Education Services,www.Birmingham.gov.uk,25/01/2016,12.00,Purchase Card Statement Summary,171011 - Education - School Services,
Solihull MBC,Children's Services - DSG Schools - Non DMT,Children & Education Services,www.Elmwoodpress.co.uk,07/12/2015,24.50,Capitation,349999 - Stationery - Not Elsewhere Classified,
Solihull MBC,Children's Services - DSG Schools - Non DMT,Children & Education Services,www.Firstaid4Sports.Co,25/01/2016,35.68,Purchase Card Statement Summary,311300 - Healthcare - Equipment,
Solihull MBC,Children's Services - DSG Schools - Non DMT,Children & Education Services,www.Helpkidzlearn.com,25/01/2016,32.40,Purchase Card Statement Summary,271200 - Information Communications Technology - Hardware,
Solihull MBC,Children's Services - DSG Schools - Non DMT,Children & Education Services,www.Helpkidzlearn.com,25/01/2016,154.80,Purchase Card Statement Summary,271200 - Information Communications Technology - Hardware,
Solihull MBC,Children's Services - DSG Schools - Non DMT,Children & Education Services,www.Helpkidzlearn.com,25/01/2016,175.80,Purchase Card Statement Summary,271200 - Information Communications Technology - Hardware,
Solihull MBC,Public Health & Commissioning ,Adult Social Care,www.Ilxgroup.com,25/01/2016,118.80,Purchase Card Statement Summary,171010 - Education - Adult & Further Education Services,
Solihull MBC,Managed Growth - HRA,Housing Revenue Account,www.Insidehousing.co.u,25/01/2016,154.00,General Debtors,349999 - Stationery - Not Elsewhere Classified,
Solihull MBC,Managed Growth,Cultural & Related Services,www.Ironmongerydirect.,25/01/2016,61.20,Purchase Card Statement Summary,102100 - Building Construction Materials - Paint & Finishing,
Solihull MBC,Communities & Adult Social Care,Adult Social Care,www.Isl-Wasteservices.,25/01/2016,198.00,Purchase Card Statement Summary,219999 - Furniture & Soft Furnishings - Not Elsewhere Classified,
Solihull MBC,Resources,Central Services to the Public,www.Johnlewis.com,25/01/2016,239.00,Purchase Card Statement Summary,169999 - Domestic Goods - Not Elsewhere Classified,
Solihull MBC,Public Health & Commissioning ,Adult Social Care,www.Johnlewis.com,25/01/2016,368.94,Purchase Card Statement Summary,169999 - Domestic Goods - Not Elsewhere Classified,
Solihull MBC,Children's Services - DSG Schools - Non DMT,Children & Education Services,www.Lampsdirect.co.uk,07/12/2015,79.93,IT Equipment & Software,169999 - Domestic Goods - Not Elsewhere Classified,
Solihull MBC,Resources,Central Services to the Public,www.Local.gov.uk,25/01/2016,477.60,Purchase Card Statement Summary,151000 - Consultancy - Business,
Solihull MBC,Managed Growth - HRA,Housing Revenue Account,www.Lockerkeys.Biz,25/01/2016,6.85,General Debtors,151000 - Consultancy - Business,
Solihull MBC,Managed Growth - HRA,Housing Revenue Account,www.Lockerkeys.Biz,25/01/2016,6.85,General Debtors,151000 - Consultancy - Business,
Solihull MBC,Managed Growth - HRA,Housing Revenue Account,www.Lockerkeys.Biz,25/01/2016,6.85,General Debtors,151000 - Consultancy - Business,
Solihull MBC,Children's Services - DSG Schools - Non DMT,Children & Education Services,www.Magicalmaths.com,03/12/2015,185.00,Capitation,171011 - Education - School Services,
Solihull MBC,Business Change,Central Services to the Public,www.Maplin.co.uk,25/01/2016,26.99,Purchase Card Statement Summary,169999 - Domestic Goods - Not Elsewhere Classified,
Solihull MBC,Managed Growth - HRA,Housing Revenue Account,www.Moneyclaim.Gov,25/01/2016,70.00,General Debtors,209999 - Financial Services - Not Elsewhere Classified,
Solihull MBC,Children's Services - DSG Schools - Non DMT,Children & Education Services,www.Moonpig.com Ltd,17/12/2015,3.62,Capitation,161000 - Domestic Goods - Commercial,
Solihull MBC,Managed Growth,Environmental and Regulatory Services,www.Neccontract.com,25/01/2016,156.00,Purchase Card Statement Summary,349999 - Stationery - Not Elsewhere Classified,
Solihull MBC,Communities & Adult Social Care,Adult Social Care,www.Nisbets.com,25/01/2016,83.10,Purchase Card Statement Summary,161000 - Domestic Goods - Commercial,
Solihull MBC,Resources,Central Services to the Public,www.Online-Ergonomics.,25/01/2016,133.74,Purchase Card Statement Summary,211000 - Furniture & Soft Furnishings - Commercial Furniture,
Solihull MBC,Resources,Central Services to the Public,www.Online-Ergonomics.,25/01/2016,145.74,Purchase Card Statement Summary,211000 - Furniture & Soft Furnishings - Commercial Furniture,
Solihull MBC,Children's Services - DSG Schools - Non DMT,Children & Education Services,www.Oup.com,25/01/2016,743.75,Purchase Card Statement Summary,171114 - Education - Literature,
Solihull MBC,Children's Services - DSG Schools - Non DMT,Children & Education Services,www.Paint-Direct.co.uk,25/01/2016,59.15,Purchase Card Statement Summary,169999 - Domestic Goods - Not Elsewhere Classified,
Solihull MBC,Children's Services - DSG Schools - Non DMT,Children & Education Services,www.Partypacks.co.uk,25/01/2016,55.37,Purchase Card Statement Summary,169999 - Domestic Goods - Not Elsewhere Classified,
Solihull MBC,Managed Growth,Cultural & Related Services,www.Poveysoatcakes.com,25/01/2016,12.96,Purchase Card Statement Summary,111200 - Catering - Food & Beverages,
Solihull MBC,Children's Services - DSG Schools - Non DMT,Children & Education Services,www.Schoolstickers.Co.,04/12/2015,11.70,Capitation,349999 - Stationery - Not Elsewhere Classified,
Solihull MBC,Children's Services - DSG Schools - Non DMT,Children & Education Services,www.Sensoryeducation.C,25/01/2016,96.68,Purchase Card Statement Summary,171117 - Education - Toys,
Solihull MBC,Children's Services - DSG Schools - Non DMT,Children & Education Services,www.Staples.co.uk,09/12/2015,-145.82,Furniture & Equipment,341100 - Stationery - Sundries,
Solihull MBC,Children's Services - DSG Schools - Non DMT,Children & Education Services,www.Staples.co.uk,08/12/2015,145.82,Furniture & Equipment,341100 - Stationery - Sundries,
Solihull MBC,Children's Services - DSG Schools - Non DMT,Children & Education Services,www.Suppliesforschools.C,25/01/2016,48.59,Purchase Card Statement Summary,271200 - Information Communications Technology - Hardware,
Solihull MBC,Communities & Adult Social Care,Adult Social Care,www.Theaterhotel.Nl,16/12/2015,216.78,Training,261000 - Human Resources - Accommodation,
Solihull MBC,Resources,Central Services to the Public,www.UK.Insight.com,25/01/2016,58.49,Purchase Card Statement Summary,161000 - Domestic Goods - Commercial,
Solihull MBC,Children's Services - DSG Schools - Non DMT,Children & Education Services,www.Wristbandangel.co.uk,16/12/2015,25.00,Health & Safety,161000 - Domestic Goods - Commercial,
Solihull MBC,Children's Services - DSG Schools - Non DMT,Children & Education Services,www.Yellowmoon.org.uk,04/12/2015,57.09,Capitation,171110 - Education - Arts & Crafts,
Solihull MBC,Resources,Central Services to the Public,Wyvern Bus Sys Ltd,25/01/2016,60.00,Purchase Card Statement Summary,271600 - Information Communication Technology - Software - Customised & Bespoke,
Solihull MBC,Children's Services - DSG Schools - Non DMT,Children & Education Services,Yardley,25/01/2016,11.70,Purchase Card Statement Summary,191100 - Facilities & Management Services - Design & Photography,
